Workbook

Sheet HOW TO
B1: General Notes
B2: CDOT Standard can be viewed here.
B3: For geohazard information needed to fill out steps 4 and 5, reach out to Robert Group (robert.group@state.co.us).
B4: For hydraulic information needed to fill out steps 4 and 5, reach out to Al Gross (alfred.gross@state.co.us)
C7: Threat Asset-Specific Notes
B8: General Instructions for all assets: | C8: Rockfall-PTCS | D8: Rockfall-Bridge | E8: Rockfall-Roadway | F8: Flood-Roadway | G8: Flood-Bridge | H8: Flood-Bridge Approach | I8: Flood-Minor Cuvlert | J8: Flood-Major Culvert | K8: Scour-Bridge | L8: General Snow Events | M8: Avalanches
A9: 1 | B9: Choose which asset(s) you are evaluating for your project | I9: Use for CMP, CMPE, RCP, RBC, RCPE | J9: Use for CBC | L9: For general snow events, like a blizzard, please use the rockfall tab for either the roadway or bridge you are assessing. Since the snow event should not damage the asset, we will only be focusing on the user risk of this asset. | M9: For avalanches, use the Rockfall Roadway or Bridge tab, and modify the annual threat likelihood to the appropriate values.
A10: 2 | B10: Duplicate the sheet for the asset, add "Mitigation" to the end of the original sheet title and "No Action" to the end of the duplicative sheet title. If there's more than one proposed mitigation that you want to evaluate for an asset, duplicate the mitigation sheet again and name appropriately. | I10: You may be upgrading from a Minor culvert to a major culvert, or vice versa. Use the correct sheet accordingly. | J10: You may be upgrading from a Minor culvert to a major culvert, or vice versa. Use the correct sheet accordingly.
A11: 3 | B11: Delete the sheets for the assets you are not assessing, but keep the Benefit Cost Ratio Sheet
A12: 4 | B12: In each "No Action" asset tab, enter the pre-mitigation (current) information for all cells colored yellow. ONLY the yellow cells and the detour route information (step 7 below) need to be filled out, and some are drop-down options only. Everything else will automatically populate. Helpful CDOT links for the information can be found in the light blue shaded cells off to the right. | C12: ALL yellow cells need to be filled out, except for cells D29 and E29. There are used for a description of the mitigation, but are not tied to the formula. | D12: ALL yellow cells need to be filled out, except for cells D25 and E25. There are used for a description of the mitigation, but are not tied to the formula. | E12: ALL yellow cells need to be filled out, except for cells D23 and E23. There are used for a description of the mitigation, but are not tied to the formula.
A13: 5 | B13: In each "Mitigation" asset tab, enter the proposed mitigation information for all cells colored yellow. ONLY the yellow cells need to be filled out, and some are drop-down options only. Everything else will automatically populate. Helpful CDOT links for the information can be found in the light blue shaded cells off to the right.
A14: 6 | B14: Determine if there is information from the standard that should be tailored to your project. If there is, make those changes at this time. | L14: Modify the full and partial closure days.
A15: 7 | B15: Enter the route name and MP location of the expected closure into the ClosureLocation tab on the HighwaySegmentList_AllSeasonDetours workbook, set the filter for the PrimaryMatch column of the DetourInfo sheet, choose a detour route, and enter the MP range, added time, and added distance into table 3.13. You can also manually map out a detour route on google maps and enter the MP range, added time, and added distance into table 3.13.
B16: Perform the benefit cost analysis
A17: 8 | B17: On the Benefit Cost Ratio sheet, add up all of the owner and user risks for the No Action and Mitigation (add more rows if you are comparing more than one mitigation measure)
A18: 9 | B18: Determine the mitigation annual cost by entering the price it would cost to replace the asset in cell K2 and the price it would cost to install the new mitigation measure in cell K3. CDOT's Cost Planner Tool or an ARC calculation (from table 3.10) can be used to determine the proces. These numbers will be used to automatically generate the delta between the prices in cell K4. Next, enter the lifespan of the mitigation method in cell K5. The B/C ratios for the owner risk, user risk, and total risk will automatically populate.

Sheet Rockfall-PTCS
A1: Problem: | C1: Rockfall
A3: Step 1: | B3: Threat Data Collection
B5: Event | C5: Annual Threat Likelihood
B6: Small | D6: =VLOOKUP(B6,B100:D102,3,FALSE) -> 1
B7: Medium | D7: =VLOOKUP(B7,B99:D101,3,FALSE) -> 0.1666666667
B8: Large | D8: =VLOOKUP(B8,B100:D102,3,FALSE) -> 0.05
A12: Step 2: Asset Data Collection | F12: CODE | G12: Item Description | J12: CDOT Link
A13: Site Overview: | C13: PTCS
B14: Roadway: | C14: Type: | D14: 2 | E14: (lanes)
C15: Width: | D15: 38 | E15: (feet)
C16: Speed Lim: | D16: 50 | E16: (mph)
B17: Total: | C17: AADT Veh: | D17: 16000 | E17: (vehicle) | F17: OTIS | G17: Avg. Annual Daily Traffic (all) | I17: CDOT OTIS Data Search Platform
C18: AADT Trck: | D18: 2000 | E18: (truck) | F18: OTIS | G18: Avg. Annual Daily Traffic (trucks) | I18: CDOT OTIS Data Search Platform
C19: Milepost: | D19: 10 | E19: 11 | F19: OTIS | G19: CDOT Mile Post | I19: CDOT OTIS Data Search Platform
C20: Car User Cost Assumptions: | D20: C2 | E20: C4 | F20: C8
C21: Trck User: | D21: C3 | E21: C5 | F21: C9
B22: Work Zone: | C22: Length: | D22: 6 | E22: (miles)
C23: Speed Red: | D23: 10 | E23: (mph)
B24: Rockfall Mitigation: | D24: 620 | E24: T35 Barrier (LF) | F24: Installed
C25: Lithology: | D25: Rock Slope
C26: Slope: | D26: Natural
C27: Ditch: | D27: Absent
C28: Monitored | D28: No
A30: Step 3: | B30: Owner Consequence
B33: =INDEX(C213:F217,E219,F219) -> 2812500
A39: Step 4: | B39: User Consequence
B40: Full Closure: | G40: Dt: | H40: =INDEX(E208:E208,MATCH(C44,D208:D208,0)) -> 189 | I40: mins
B41: Avg Veh: | C41: =D17 -> 16000 | D41: Veh Cost: | E41: =VLOOKUP(D20,G224:H230,2) -> 0.59 | G41: Veh: | H41: =VLOOKUP(E20,G224:H230,2) -> 10.62
B42: Avg Trck: | C42: =D18 -> 2000 | D42: Trck Cost: | E42: =VLOOKUP(D21,G224:H230,2) -> 0.96 | G42: Trck: | H42: =VLOOKUP(E21,G224:H230,2) -> 25.31
B43: dFC: | C43: =SUMPRODUCT((B239:B249=C13)*(C239:C249=C1)*(D239:D249)) -> 4 | G43: O: | H43: =VLOOKUP(D22,G224:H230,2) -> 1.77
B44: C7: | C44: =LOOKUP(2,1/(B208:B208<=D19)/(C208:C208>=D19),D208:D208) -> 146 | D44: VOC.FC: | E44: =(E41*C41+E42*C42)*C43*C44 -> 6634240 | G44: LW.FC: | H44: =(H41*H43*C41+H42*C42)*C43*H40/60 -> 4427367.84
D46: Total Full: | E46: =E44+H44 -> 11061607.84
B48: Partial Closure:
B49: WL: | C49: =D22 -> 6 | D49: Veh Cost: | E49: =VLOOKUP(F20,G224:H230,2) -> 26.52
B50: WZS: | C50: =D16 -> 50 | D50: Trck Cost: | E50: =VLOOKUP(F21,G224:H230,2) -> 44.24
B51: WZSR: | C51: =D23 -> 10
B52: dPC: | C52: =SUMPRODUCT((B239:B249=C13)*(C239:C249=C1)*(E239:E249)) -> 14 | D52: VOC.PC: | E52: =(1/((1/C49)*(C50-C51))-1/((1/C49)*C50))*(E49*C41+E50*C42)*C52 -> 215376 | G52: LW.PC: | H52: =(1/((1/C49)*(C50-C51))-1/((1/C49)*C50))*(H41*H43*C41+H42*C42)*C52 -> 147578.928
D54: Total Part: | E54: =E52+H52 -> 362954.928
D57: Total: | E57: =E46+E54 -> 11424562.77
A59: Step 5: | B59: Vulnerability Assessment
B60: Event Vol: | C60: =B100 -> Small | D60: =INDEX(C100:C102,MATCH(C60,B100:B102,0)) -> lt100 | E60: Event Index: | F60: =MATCH(D60,C175:C203,0) -> 1
C61: =B101 -> Medium | D61: =INDEX(C100:C102,MATCH(C61,B100:B102,0)) -> 100to499 | F61: =MATCH(D61,C175:C203,0) -> 17
C62: =B102 -> Large | D62: =INDEX(C100:C102,MATCH(C62,B100:B102,0)) -> gt499 | F62: =MATCH(D62,C175:C203,0) -> 29
B63: Slope: | D63: =D26 -> Natural | E63: Slope Index: | F63: =MATCH(D63,D175:D202,0) -> 9 | G63: =F60+F63-1 -> 9
G64: =F61+F63-1 -> 25
B65: Lithology: | D65: =D25 -> Rock Slope | E65: Lith Index: | F65: =MATCH(D65,E175:E182,0) -> 1 | G65: =G63+F65-1 -> 9
G66: =IF(D63="Cut",G64+F65-1,G64+MATCH(D65,E199:E202,0)-1) -> 25
B67: Ditch: | D67: =D27 -> Absent | E67: Ditch Index: | F67: =MATCH(D67,F175:F178,0) -> 1 | G67: =G65+F67-1 -> 9
G68: =IF(D63="Cut",G66+F67-1,G66) -> 25
B69: Monitored: | D69: =D28 -> No | E69: Mon Index: | F69: =IF(D69="Yes",0,1) -> 1 | G69: =G67+F69 -> 10
G70: =G68+F69 -> 26
B71: Mitigation: | D71: =F24 -> Installed | E71: Mit Index: | F71: =MATCH(D71,I174:K174,0) -> 3
B73: Event: | C73: 1-yr | D73: =INDEX(I175:K203,G69,F71) -> 0.0015
C74: 6-yr | D74: =INDEX(I175:K203,G70,F71) -> 0.56
C75: 20-yr | D75: =INDEX(I175:K203,F62,F71) -> 0.99
A77: Step 6: | B77: Risk Assessment
B79: Annual Owner Risk: | D79: =B33*D73*D6 -> 4218.75
D80: =ROUND(B33*D74*D7,0) -> 262500
D81: =B33*D75*D8 -> 139218.75
B83: Total Owner Risk: | D83: =SUM(D79:D81) -> 405937.5
B85: Annual User Risk: | D85: =E57*D73*D6 -> 17136.84415
D86: =ROUND(E57*D74*D7,0) -> 1066293
D87: =E57*D75*D8 -> 565515.857
B89: Total User Risk: | D89: =SUM(D85:D87) -> 1648945.701
B91: Total Annual Risk: | D91: =D83+D89 -> 2054883.201
A95: Please customize the information from the standard below:
A97: Exhibits: | B97: 3.6
B98: Event | C98: Volume | D98: Annual Threat
B99: Magnitude | C99: (cu yds) | D99: Likelihood
B100: Small | C100: lt100 | D100: 1
B101: Medium | C101: 100to499 | D101: =1/6 -> 0.1666666667
B102: Large | C102: gt499 | D102: =1/20 -> 0.05
Q158: 3.1
B159: 3.8
C160: Road
B161: Asset | C161: Type | D161: Units | E161: Unit Cost
B162: Approach | D162: sq ft | E162: 350
B163: Bridge | D163: sq ft | E163: 600
B164: CBC | D164: cu ft | E164: 55
B165: PTCS | D165: sq ft | E165: 550
B166: Roadway | C166: Asphalt | D166: sq yds | E166: 150
B167: Roadway | C167: Concrete | D167: sq yds | E167: 350
B169: Unit Cost: | C169: =INDEX(E162:E167,MATCH(C13,B162:B167,0)) -> 550 | D169: ($ / units)
B171: 4.1.1.12
B172: Magnitude | D172: Factors | I172: Vulnerability
B173: Return | D173: Natural or | I173: Mitigation
B174: Period | C174: Volume | D174: Cut Slope | E174: Lithology | F174: Ditch | G174: Width | H174: Monitored | I174: No | J174: Maintained | K174: Installed
B175: 1-yr | C175: lt100 | D175: Cut | E175: Rock Slope | F175: Absent | H175: Yes | I175: 0 | J175: 0 | K175: =I175*0.15 -> 0 | L175: 1
B176: 1-yr | C176: lt100 | D176: Cut | E176: Rock Slope | F176: Absent | H176: No | I176: 0.01 | J176: 0.01 | K176: =I176*0.15 -> 0.0015 | L176: 2
B177: 1-yr | C177: lt100 | D177: Cut | E177: Rock Slope | F177: Present | H177: Yes | I177: 0 | J177: 0 | K177: 0 | L177: 3
B178: 1-yr | C178: lt100 | D178: Cut | E178: Rock Slope | F178: Present | H178: No | I178: 0.01 | J178: 0.01 | K178: 0.0015 | L178: 4
B179: 1-yr | C179: lt100 | D179: Cut | E179: Non-Rock | F179: Absent | H179: Yes | I179: 0 | J179: 0 | K179: 0 | L179: 5
B180: 1-yr | C180: lt100 | D180: Cut | E180: Non-Rock | F180: Absent | H180: No | I180: 0.01 | J180: 0 | K180: 0.0015 | L180: 6
B181: 1-yr | C181: lt100 | D181: Cut | E181: Non-Rock | F181: Present | H181: Yes | I181: 0 | J181: 0 | K181: 0 | L181: 7
B182: 1-yr | C182: lt100 | D182: Cut | E182: Non-Rock | F182: Present | H182: No | I182: 0.01 | J182: 0 | K182: 0.0015 | L182: 8
B183: 1-yr | C183: lt100 | D183: Natural | E183: Rock Slope | F183: Absent | H183: Yes | I183: 0.01 | J183: 0 | K183: 0.0015 | L183: 9
B184: 1-yr | C184: lt100 | D184: Natural | E184: Rock Slope | F184: Absent | H184: No | I184: 0.01 | J184: 0.01 | K184: 0.0015 | L184: 10
B185: 1-yr | C185: lt100 | D185: Natural | E185: Rock Slope | F185: Present | H185: Yes | I185: 0 | J185: 0 | K185: 0 | L185: 11
B186: 1-yr | C186: lt100 | D186: Natural | E186: Rock Slope | F186: Present | H186: No | I186: 0.01 | J186: 0.01 | K186: 0.0015 | L186: 12
B187: 1-yr | C187: lt100 | D187: Natural | E187: Non-Rock | F187: Absent | H187: Yes | I187: 0 | J187: 0 | K187: 0 | L187: 13
B188: 1-yr | C188: lt100 | D188: Natural | E188: Non-Rock | F188: Absent | H188: No | I188: 0.01 | J188: 0.01 | K188: 0.0015 | L188: 14
B189: 1-yr | C189: lt100 | D189: Natural | E189: Non-Rock | F189: Present | H189: Yes | I189: 0 | J189: 0 | K189: 0 | L189: 15
B190: 1-yr | C190: lt100 | D190: Natural | E190: Non-Rock | F190: Present | H190: No | I190: 0.01 | J190: 0.01 | K190: 0.0015 | L190: 16
B191: 6-yr | C191: 100to499 | D191: Cut | E191: Rock Slope | F191: Absent | G191: lte10 | H191: Yes | I191: 0.35 | J191: 0.3 | K191: =I191*0.7 -> 0.245 | L191: 17
B192: 6-yr | C192: 100to499 | D192: Cut | E192: Rock Slope | F192: Absent | G192: lte10 | H192: No | I192: 0.65 | J192: 0.5 | K192: =I192*0.7 -> 0.455 | L192: 18
B193: 6-yr | C193: 100to499 | D193: Cut | E193: Rock Slope | F193: Present | G193: gt10 | H193: Yes | I193: 0.3 | J193: 0.25 | K193: 0.21 | L193: 19
B194: 6-yr | C194: 100to499 | D194: Cut | E194: Rock Slope | F194: Present | G194: gt10 | H194: No | I194: 0.6 | J194: 0.45 | K194: 0.42 | L194: 20
B195: 6-yr | C195: 100to499 | D195: Cut | E195: Non-Rock | F195: Absent | G195: lte10 | H195: Yes | I195: 0.3 | J195: 0.25 | K195: 0.21 | L195: 21
B196: 6-yr | C196: 100to499 | D196: Cut | E196: Non-Rock | F196: Absent | G196: lte10 | H196: No | I196: 0.554 | J196: 0.45 | K196: 0.3878 | L196: 22
B197: 6-yr | C197: 100to499 | D197: Cut | E197: Non-Rock | F197: Present | G197: gt10 | H197: Yes | I197: 0.25 | J197: 0.2 | K197: 0.175 | L197: 23
B198: 6-yr | C198: 100to499 | D198: Cut | E198: Non-Rock | F198: Present | G198: gt10 | H198: No | I198: 0.5 | J198: 0.4 | K198: 0.35 | L198: 24
B199: 6-yr | C199: 100to499 | D199: Natural | E199: Rock Slope | H199: Yes | I199: 0.4 | J199: 0.3 | K199: 0.28 | L199: 25
B200: 6-yr | C200: 100to499 | D200: Natural | E200: Rock Slope | H200: No | I200: 0.8 | J200: 0.5 | K200: 0.56 | L200: 26
B201: 6-yr | C201: 100to499 | D201: Natural | E201: Non-Rock | H201: Yes | I201: 0.35 | J201: 0.3 | K201: 0.245 | L201: 27
B202: 6-yr | C202: 100to499 | D202: Natural | E202: Non-Rock | H202: No | I202: 0.3 | J202: 0.25 | K202: 0.21 | L202: 28
B203: 20-yr | C203: gt499 | I203: 0.99 | J203: 0.99 | K203: 0.99 | L203: 29
B205: 3.13 | D205: (miles) | E205: (minutes)
B206: Start | C206: End | D206: Added Travel | E206: Added Travel
B207: Milepost | C207: Milepost | D207: Distance (C7) | E207: Time (Dt)
B208: 1 | C208: 14 | D208: 146 | E208: 189
B210: 3.1
C211: Threat
B212: Asset | C212: Debris | D212: Flood | E212: Scour | F212: Rockfall
B213: Approach | D213: =C219 -> 41800
B214: Bridge | D214: =C219+5000 -> 46800 | E214: =C219+5000 -> 46800 | F214: =IF(D14<100,C219+200000,2500000) -> 241800
B215: Culvert | C215: =C219+5000 -> 46800 | D215: =C219+5000 -> 46800
B216: PTCS | F216: =0.25*500*D15*C169+200000 -> 2812500
B217: Roadway | C217: =C219+5000 -> 46800 | D217: =C219+5000 -> 46800 | F217: =100*D15*C169+200000 -> 2290000
B219: ARC: | C219: =D15*D14*C169 -> 41800 | E219: =MATCH(C13,B213:B217,0) -> 4 | F219: =MATCH(C1,C212:F212,0) -> 4
B221: 3.11
I222: Year
B223: User Cost Terms | G223: Variable | H223: Value ($) | I223: Published
B224: Average Vehicle Occupancy | G224: 0 | H224: 1.77 | I224: 2019
B225: Car Running Cost per Mile | G225: C2 | H225: 0.59 | I225: 2019
B226: Truck Running Cost per Mile | G226: C3 | H226: 0.96 | I226: 2015
B227: Average Value of Time per Adult per Hour | G227: C4 | H227: 10.62 | I227: 2015
B228: Average Value of Freight Driver Cost per Hour | G228: C5 | H228: 25.31 | I228: 2015
B229: Car Running Cost per Mile | G229: C8 | H229: 26.52 | I229: 2015
B230: Truck Running Cost per Mile | G230: C9 | H230: 44.24 | I230: 2015
G232: A: | H232: <= half road width
G233: B: | H233: > half road width
G234: C: | H234: 2 directions
B236: 3.12
D237: Full Closure | E237: Part Closure
B238: Asset | C238: Threat | D238: Days (dFC) | E238: Days (dPC)
B239: Approach | C239: All | D239: 2 | E239: 0
B240: Bridge | C240: Flood | D240: 180 | E240: 0
B241: Bridge | C241: Debris | D241: 2 | E241: 0
B242: Bridge | C242: Rockfall | D242: 4 | E242: 14
B243: Culvert | C243: Flood | D243: 3 | E243: 0
B244: Culvert | C244: Debris | D244: 1 | E244: 0
B245: PTCS | C245: Rockfall | D245: 4 | E245: 14
B246: Road A | C246: Flood | D246: 1 | E246: 0
B247: Road B | C247: Flood | D247: 3 | E247: 0
B248: Road C | C248: Flood | D248: 3 | E248: 0
B249: Roadway | C249: Rockfall | D249: 4 | E249: 14

Sheet Rockfall-Bridge
A1: Problem: | C1: Rockfall
A3: Step 1: | B3: Threat Data Collection
B5: Event | C5: Annual Threat Likelihood
B6: Small | D6: =VLOOKUP(B6,B101:D103,3,FALSE) -> 1
B7: Medium | D7: =VLOOKUP(B7,B101:D103,3,FALSE) -> 0.1666666667
B8: Large | D8: =VLOOKUP(B8,B101:D103,3,FALSE) -> 0.05
A12: Step 2: | B12: Asset Data Collection | G12: CODE | H12: Item Description | K12: CDOT Link
A13: Site Overview: | C13: Bridge
C14: Length: | D14: 100 | E14: (feet)
B15: Deck: | C15: Width: | D15: 38 | E15: (feet)
C16: Length: | D16: 187 | E16: (feet)
C17: Speed Lim: | D17: 55 | E17: (mph)
B18: Total: | C18: AADT Veh: | D18: 11950 | E18: (vehicle) | G18: OTIS | H18: Avg. Annual Daily Traffic (all) | J18: CDOT OTIS Data Search Platform
C19: AADT Trck: | D19: 2050 | E19: (truck) | G19: OTIS | H19: Avg. Annual Daily Traffic (trucks) | J19: CDOT OTIS Data Search Platform
C20: Milepost: | D20: 10 | G20: OTIS | H20: CDOT Mile Post | J20: CDOT OTIS Data Search Platform
C21: Car User: | D21: C2 | E21: C4 | F21: C8
C22: Trck User: | D22: C3 | E22: C5 | F22: C9
B23: Work Zone: | C23: Length: | D23: 1 | E23: (miles)
C24: Speed Red: | D24: 15 | E24: (mph)
B25: Rockfall Mitigation: | F25: No
C26: Lithology: | D26: Rock Slope
C27: Slope: | D27: Natural
C28: Ditch: | D28: Absent
C29: Monitored | D29: No
A31: Step 3: | B31: Owner Consequence
B34: =INDEX(C159:F163,E165,F165) -> 2500000
A40: Step 4: | B40: User Consequence
B41: Full Closure: | G41: Dt: | H41: =INDEX(E154:E154,MATCH(C45,D154:D154,0)) -> 189 | I41: mins
B42: Avg Veh: | C42: =D18 -> 11950 | D42: Veh Cost: | E42: =VLOOKUP(D21,G170:H176,2) -> 0.59 | G42: Veh: | H42: =VLOOKUP(E21,G170:H176,2) -> 10.62
B43: Avg Trck: | C43: =D19 -> 2050 | D43: Trck Cost: | E43: =VLOOKUP(D22,G170:H176,2) -> 0.96 | G43: Trck: | H43: =VLOOKUP(E22,G170:H176,2) -> 25.31
B44: dFC: | C44: =SUMPRODUCT((B184:B194=C13)*(C184:C194=C1)*(D184:D194)) -> 4 | G44: O: | H44: =VLOOKUP(D23,G170:H176,2) -> 1.77
B45: C7: | C45: =LOOKUP(2,1/(B154:B154<=D20)/(C154:C154>=D20),D154:D154) -> 146 | D45: VOC.FC: | E45: =(E42*C42+E43*C43)*C44*C45 -> 5266804 | G45: LW.FC: | H45: =(H42*H44*C42+H43*C43)*C44*H41/60 -> 3484081.818
D47: Total Full: | E47: =E45+H45 -> 8750885.818
B49: Partial Closure:
B50: WL: | C50: =D23 -> 1 | D50: Veh Cost: | E50: =VLOOKUP(F21,G170:H176,2) -> 26.52
B51: WZS: | C51: =D17 -> 55 | D51: Trck Cost: | E51: =VLOOKUP(F22,G170:H176,2) -> 44.24
B52: WZSR: | C52: =D24 -> 15
B53: dPC: | C53: =SUMPRODUCT((B184:B194=C13)*(C184:C194=C1)*(E184:E194)) -> 14 | D53: VOC.PC: | E53: =(1/((1/C50)*(C51-C52))-1/((1/C50)*C51))*(E50*C42+E51*C43)*C53 -> 38907.84545 | G53: LW.PC: | H53: =(1/((1/C50)*(C51-C52))-1/((1/C50)*C51))*(H42*H44*C42+H43*C43)*C53 -> 26394.55923
D55: Total Part: | E55: =E53+H53 -> 65302.40468
D58: Total: | E58: =E47+E55 -> 8816188.223
A60: Step 5: | B60: Vulnerability Assessment
B62: Event Vol: | C62: =B101 -> Small | D62: =INDEX(C101:C103,MATCH(C62,B101:B103,0)) -> lt100 | E62: Event Index: | F62: =MATCH(D62,C121:C149,0) -> 1
C63: =B102 -> Medium | D63: =INDEX(C101:C103,MATCH(C63,B101:B103,0)) -> 100to499 | F63: =MATCH(D63,C121:C149,0) -> 17
C64: =B103 -> Large | D64: =INDEX(C101:C103,MATCH(C64,B101:B103,0)) -> gt499 | F64: =MATCH(D64,C121:C149,0) -> 29
B65: Slope: | D65: =D27 -> Natural | E65: Slope Index: | F65: =MATCH(D65,D121:D148,0) -> 9 | G65: =F62+F65-1 -> 9
G66: =F63+F65-1 -> 25
B67: Lithology: | D67: =D26 -> Rock Slope | E67: Lith Index: | F67: =MATCH(D67,E121:E128,0) -> 1 | G67: =G65+F67-1 -> 9
G68: =IF(D65="Cut",G66+F67-1,G66+MATCH(D67,E145:E148,0)-1) -> 25
B69: Ditch: | D69: =D28 -> Absent | E69: Ditch Index: | F69: =MATCH(D69,F121:F124,0) -> 1 | G69: =G67+F69-1 -> 9
G70: =IF(D65="Cut",G68+F69-1,G68) -> 25
B71: Monitored: | D71: =D29 -> No | E71: Mon Index: | F71: =IF(D71="Yes",0,1) -> 1 | G71: =G69+F71 -> 10
G72: =G70+F71 -> 26
B73: Mitigation: | D73: =F25 -> No | E73: Mit Index: | F73: =MATCH(D73,I120:K120,0) -> 1
B75: Event: | C75: 1-yr | D75: =INDEX(I121:K149,G71,F73) -> 0.01
C76: 6-yr | D76: =INDEX(I121:K149,G72,F73) -> 0.8
C77: 20-yr | D77: =INDEX(I121:K149,F64,F73) -> 0.99
A79: Step 6: | B79: Risk Assessment
B81: Annual Owner Risk: | D81: =B34*D75*D6 -> 25000
D82: =B34*D76*D7 -> 333333.3333
D83: =B34*D77*D8 -> 123750
B85: Total Owner Risk: | D85: =SUM(D81:D83) -> 482083.3333
B87: Annual User Risk: | D87: =E58*D75*D6 -> 88161.88223
D88: =E58*D76*D7 -> 1175491.763
D89: =E58*D77*D8 -> 436401.317
B91: Total User Risk: | D91: =SUM(D87:D89) -> 1700054.962
B93: Total Annual Risk: | D93: =D85+D91 -> 2182138.296
A96: Please customize the information from the standard below:
A98: Exhibits: | B98: 3.6
B99: Event | C99: Volume | D99: Annual Threat
B100: Magnitude | C100: (cu yds) | D100: Likelihood
B101: Small | C101: lt100 | D101: 1
B102: Medium | C102: 100to499 | D102: =1/6 -> 0.1666666667
B103: Large | C103: gt499 | D103: =1/20 -> 0.05
B105: 3.8
C106: Road
B107: Asset | C107: Type | D107: Units | E107: Unit Cost
B108: Approach | D108: sq ft | E108: 350
B109: Bridge | D109: sq ft | E109: 600
B110: CBC | D110: cu ft | E110: 55
B111: PTCS | D111: sq ft | E111: 550
B112: Roadway | C112: Asphalt | D112: sq yds | E112: 150
B113: Roadway | C113: Concrete | D113: sq yds | E113: 350
B115: Unit Cost: | C115: =INDEX(E108:E113,MATCH(C13,B108:B113,0)) -> 600 | D115: ($ / units)
B117: 4.1.1.12
B118: Magnitude | D118: Factors | I118: Vulnerability
B119: Return | D119: Natural or | I119: Mitigation
B120: Period | C120: Volume | D120: Cut Slope | E120: Lithology | F120: Ditch | G120: Width | H120: Monitored | I120: No | J120: Maintained | K120: Installed
B121: 1-yr | C121: lt100 | D121: Cut | E121: Rock Slope | F121: Absent | H121: Yes | I121: 0 | J121: 0 | K121: 0 | L121: 1
B122: 1-yr | C122: lt100 | D122: Cut | E122: Rock Slope | F122: Absent | H122: No | I122: 0.01 | J122: 0.01 | K122: 0 | L122: 2
B123: 1-yr | C123: lt100 | D123: Cut | E123: Rock Slope | F123: Present | H123: Yes | I123: 0 | J123: 0 | K123: 0 | L123: 3
B124: 1-yr | C124: lt100 | D124: Cut | E124: Rock Slope | F124: Present | H124: No | I124: 0.01 | J124: 0.01 | K124: 0 | L124: 4
B125: 1-yr | C125: lt100 | D125: Cut | E125: Non-Rock | F125: Absent | H125: Yes | I125: 0 | J125: 0 | K125: 0 | L125: 5
B126: 1-yr | C126: lt100 | D126: Cut | E126: Non-Rock | F126: Absent | H126: No | I126: 0.01 | J126: 0 | K126: 0 | L126: 6
B127: 1-yr | C127: lt100 | D127: Cut | E127: Non-Rock | F127: Present | H127: Yes | I127: 0 | J127: 0 | K127: 0 | L127: 7
B128: 1-yr | C128: lt100 | D128: Cut | E128: Non-Rock | F128: Present | H128: No | I128: 0.01 | J128: 0 | K128: 0 | L128: 8
B129: 1-yr | C129: lt100 | D129: Natural | E129: Rock Slope | F129: Absent | H129: Yes | I129: 0.01 | J129: 0 | K129: 0 | L129: 9
B130: 1-yr | C130: lt100 | D130: Natural | E130: Rock Slope | F130: Absent | H130: No | I130: 0.01 | J130: 0.01 | K130: 0 | L130: 10
B131: 1-yr | C131: lt100 | D131: Natural | E131: Rock Slope | F131: Present | H131: Yes | I131: 0 | J131: 0 | K131: 0 | L131: 11
B132: 1-yr | C132: lt100 | D132: Natural | E132: Rock Slope | F132: Present | H132: No | I132: 0.01 | J132: 0.01 | K132: 0 | L132: 12
B133: 1-yr | C133: lt100 | D133: Natural | E133: Non-Rock | F133: Absent | H133: Yes | I133: 0 | J133: 0 | K133: 0 | L133: 13
B134: 1-yr | C134: lt100 | D134: Natural | E134: Non-Rock | F134: Absent | H134: No | I134: 0.01 | J134: 0.01 | K134: 0 | L134: 14
B135: 1-yr | C135: lt100 | D135: Natural | E135: Non-Rock | F135: Present | H135: Yes | I135: 0 | J135: 0 | K135: 0 | L135: 15
B136: 1-yr | C136: lt100 | D136: Natural | E136: Non-Rock | F136: Present | H136: No | I136: 0.01 | J136: 0.01 | K136: 0 | L136: 16
B137: 6-yr | C137: 100to499 | D137: Cut | E137: Rock Slope | F137: Absent | G137: lte10 | H137: Yes | I137: 0.35 | J137: 0.3 | K137: 0.15 | L137: 17
B138: 6-yr | C138: 100to499 | D138: Cut | E138: Rock Slope | F138: Absent | G138: lte10 | H138: No | I138: 0.65 | J138: 0.5 | K138: 0.25 | L138: 18
B139: 6-yr | C139: 100to499 | D139: Cut | E139: Rock Slope | F139: Present | G139: gt10 | H139: Yes | I139: 0.3 | J139: 0.25 | K139: 0.15 | L139: 19
B140: 6-yr | C140: 100to499 | D140: Cut | E140: Rock Slope | F140: Present | G140: gt10 | H140: No | I140: 0.6 | J140: 0.45 | K140: 0.25 | L140: 20
B141: 6-yr | C141: 100to499 | D141: Cut | E141: Non-Rock | F141: Absent | G141: lte10 | H141: Yes | I141: 0.3 | J141: 0.25 | K141: 0.15 | L141: 21
B142: 6-yr | C142: 100to499 | D142: Cut | E142: Non-Rock | F142: Absent | G142: lte10 | H142: No | I142: 0.554 | J142: 0.45 | K142: 0.25 | L142: 22
B143: 6-yr | C143: 100to499 | D143: Cut | E143: Non-Rock | F143: Present | G143: gt10 | H143: Yes | I143: 0.25 | J143: 0.2 | K143: 0.1 | L143: 23
B144: 6-yr | C144: 100to499 | D144: Cut | E144: Non-Rock | F144: Present | G144: gt10 | H144: No | I144: 0.5 | J144: 0.4 | K144: 0.2 | L144: 24
B145: 6-yr | C145: 100to499 | D145: Natural | E145: Rock Slope | H145: Yes | I145: 0.4 | J145: 0.3 | K145: 0.15 | L145: 25
B146: 6-yr | C146: 100to499 | D146: Natural | E146: Rock Slope | H146: No | I146: 0.8 | J146: 0.5 | K146: 0.25 | L146: 26
B147: 6-yr | C147: 100to499 | D147: Natural | E147: Non-Rock | H147: Yes | I147: 0.35 | J147: 0.3 | K147: 0.15 | L147: 27
B148: 6-yr | C148: 100to499 | D148: Natural | E148: Non-Rock | H148: No | I148: 0.3 | J148: 0.25 | K148: 0.15 | L148: 28
B149: 20-yr | C149: gt499 | I149: 0.99 | J149: 0.99 | K149: 0.99 | L149: 29
B151: 3.13 | D151: (miles) | E151: (minutes)
B152: Start | C152: End | D152: Added Travel | E152: Added Travel
B153: Milepost | C153: Milepost | D153: Distance (C7) | E153: Time (Dt)
B154: 1 | C154: 14 | D154: 146 | E154: 189
B156: 3.1
C157: Threat
B158: Asset | C158: Debris | D158: Flood | E158: Scour | F158: Rockfall
B159: Approach | D159: =C165 -> 2280000
B160: Bridge | D160: =C165+5000 -> 2285000 | E160: =C165+5000 -> 2285000 | F160: =IF(D14<100,C165+200000,2500000) -> 2500000
B161: Culvert | C161: =C165+5000 -> 2285000 | D161: =C165+5000 -> 2285000
B162: PTCS | F162: =0.25*500*D15*C115+200000 -> 3050000
B163: Roadway | C163: =C165+5000 -> 2285000 | D163: =C165+5000 -> 2285000 | F163: =100*D15*C115+200000 -> 2480000
B165: ARC: | C165: =D14*D15*C115 -> 2280000 | E165: =MATCH(C13,B159:B163,0) -> 2 | F165: =MATCH(C1,C158:F158,0) -> 4
B167: 3.11
I168: Year
B169: User Cost Terms | G169: Variable | H169: Value ($) | I169: Published
B170: Average Vehicle Occupancy | G170: 0 | H170: 1.77 | I170: 2019
B171: Car Running Cost per Mile | G171: C2 | H171: 0.59 | I171: 2019
B172: Truck Running Cost per Mile | G172: C3 | H172: 0.96 | I172: 2015
B173: Average Value of Time per Adult per Hour | G173: C4 | H173: 10.62 | I173: 2015
B174: Average Value of Freight Driver Cost per Hour | G174: C5 | H174: 25.31 | I174: 2015
B175: Car Running Cost per Mile | G175: C8 | H175: 26.52 | I175: 2015
B176: Truck Running Cost per Mile | G176: C9 | H176: 44.24 | I176: 2015
G178: A: | H178: <= half road width
G179: B: | H179: > half road width
G180: C: | H180: 2 directions
B181: 3.12
D182: Full Closure | E182: Part Closure
B183: Asset | C183: Threat | D183: Days (dFC) | E183: Days (dPC)
B184: Approach | C184: All | D184: 2 | E184: 0
B185: Bridge | C185: Flood | D185: 180 | E185: 0
B186: Bridge | C186: Debris | D186: 2 | E186: 0
B187: Bridge | C187: Rockfall | D187: 4 | E187: 14
B188: Culvert | C188: Flood | D188: 3 | E188: 0
B189: Culvert | C189: Debris | D189: 1 | E189: 0
B190: PTCS | C190: Rockfall | D190: 4 | E190: 14
B191: Road A | C191: Flood | D191: 1 | E191: 0
B192: Road B | C192: Flood | D192: 3 | E192: 0
B193: Road C | C193: Flood | D193: 3 | E193: 0
B194: Roadway | C194: Rockfall | D194: 4 | E194: 14

Sheet Rockfall-Roadway
A1: Problem: | C1: Rockfall
A3: Step 1: | B3: Threat Data Collection
B5: Event | C5: Annual Threat Likelihood
B6: Small | D6: =VLOOKUP(B6,B99:D101,3,FALSE) -> 1
B7: Medium | D7: =VLOOKUP(B7,B99:D101,3,FALSE) -> 0.1666666667
B8: Large | D8: =VLOOKUP(B8,B99:D101,3,FALSE) -> 0.05
A11: Step 2: | B11: Asset Data Collection | G11: CODE | H11: Item Description | K11: CDOT Link
A12: Site Overview: | C12: Roadway | D12: Asphalt
B13: Roadway: | C13: Length: | D13: 100 | E13: (feet)
C14: Width: | D14: 38 | E14: (feet)
C15: Speed Lim: | D15: 50 | E15: (mph)
B16: Total: | C16: AADT Veh: | D16: 13780 | E16: (vehicle) | G16: OTIS | H16: Avg. Annual Daily Traffic (all) | J16: CDOT OTIS Data Search Platform
C17: AADT Trck: | D17: 2220 | E17: (truck) | G17: OTIS | H17: Avg. Annual Daily Traffic (trucks) | J17: CDOT OTIS Data Search Platform
C18: Milepost: | D18: 10 | G18: OTIS | H18: CDOT Mile Post | J18: CDOT OTIS Data Search Platform
C19: Car User: | D19: C2 | E19: C4 | F19: C8
C20: Trck User: | D20: C3 | E20: C5 | F20: C9
B21: Work Zone: | C21: Length: | D21: 1 | E21: (miles)
C22: Speed Red: | D22: 15 | E22: (mph)
B23: Rockfall Mitigation: | F23: No
C24: Lithology: | D24: Rock Slope
C25: Slope: | D25: Natural
C26: Ditch: | D26: Absent
C27: Monitored | D27: No
A29: Step 3: | B29: Owner Consequence
B32: =ROUNDUP(INDEX(C157:F161,E163,F163)/50,0)*50 -> 263350
A38: Step 4: | B38: User Consequence
B39: Full Closure: | G39: Dt: | H39: =INDEX(E152:E153,MATCH(C43,D152:D153,0)) -> 189 | I39: mins
B40: Avg Veh: | C40: =D16 -> 13780 | D40: Veh Cost: | E40: =VLOOKUP(D19,G168:H174,2) -> 0.59 | G40: Veh: | H40: =VLOOKUP(E19,G168:H174,2) -> 10.62
B41: Avg Trck: | C41: =D17 -> 2220 | D41: Trck Cost: | E41: =VLOOKUP(D20,G168:H174,2) -> 0.96 | G41: Trck: | H41: =VLOOKUP(E20,G168:H174,2) -> 25.31
B42: dFC: | C42: =SUMPRODUCT((B182:B192=C12)*(C182:C192=C1)*(D182:D192)) -> 4 | G42: O: | H42: =VLOOKUP(D21,G168:H174,2) -> 1.77
B43: C7: | C43: =LOOKUP(2,1/(B152:B153<=D18)/(C152:C153>=D18),D152:D153) -> 146 | D43: VOC.FC: | E43: =(E40*C40+E41*C41)*C42*C43 -> 5992657.6 | G43: LW.FC: | H43: =(H40*H42*C40+H41*C41)*C42*H39/60 -> 3971726.287
D45: Total Full: | E45: =E43+H43 -> 9964383.887
B47: Partial Closure:
B48: WL: | C48: =D21 -> 1 | D48: Veh Cost: | E48: =VLOOKUP(F19,G168:H174,2) -> 26.52
B49: WZS: | C49: =D15 -> 50 | D49: Trck Cost: | E49: =VLOOKUP(F20,G168:H174,2) -> 44.24
B50: WZSR: | C50: =D22 -> 15
B51: dPC: | C51: =SUMPRODUCT((B182:B192=C12)*(C182:C192=C1)*(E182:E192)) -> 14 | D51: VOC.PC: | E51: =(1/((1/C48)*(C49-C50))-1/((1/C48)*C49))*(E48*C40+E49*C41)*C51 -> 55639.008 | G51: LW.PC: | H51: =(1/((1/C48)*(C49-C50))-1/((1/C48)*C49))*(H40*H42*C40+H41*C41)*C51 -> 37825.96464
D53: Total Part: | E53: =E51+H51 -> 93464.97264
D56: Total: | E56: =E45+E53 -> 10057848.86
A58: Step 5: | B58: Vulnerability Assessment
B60: Event Vol: | C60: =B99 -> Small | D60: =INDEX(C99:C101,MATCH(C60,B99:B101,0)) -> lt100 | E60: Event Index: | F60: =MATCH(D60,C119:C147,0) -> 1
C61: =B100 -> Medium | D61: =INDEX(C99:C101,MATCH(C61,B99:B101,0)) -> 100to499 | F61: =MATCH(D61,C119:C147,0) -> 17
C62: =B101 -> Large | D62: =INDEX(C99:C101,MATCH(C62,B99:B101,0)) -> gt499 | F62: =MATCH(D62,C119:C147,0) -> 29
B63: Slope: | D63: =D25 -> Natural | E63: Slope Index: | F63: =MATCH(D63,D119:D146,0) -> 9 | G63: =F60+F63-1 -> 9
G64: =F61+F63-1 -> 25
B65: Lithology: | D65: =D24 -> Rock Slope | E65: Lith Index: | F65: =MATCH(D65,E119:E126,0) -> 1 | G65: =G63+F65-1 -> 9
G66: =IF(D63="Cut",G64+F65-1,G64+MATCH(D65,E143:E146,0)-1) -> 25
B67: Ditch: | D67: =D26 -> Absent | E67: Ditch Index: | F67: =MATCH(D67,F119:F122,0) -> 1 | G67: =G65+F67-1 -> 9
G68: =IF(D63="Cut",G66+F67-1,G66) -> 25
B69: Monitored: | D69: =D27 -> No | E69: Mon Index: | F69: =IF(D69="Yes",0,1) -> 1 | G69: =G67+F69 -> 10
G70: =G68+F69 -> 26
B71: Mitigation: | D71: =F23 -> No | E71: Mit Index: | F71: =MATCH(D71,I118:K118,0) -> 1
B73: Event: | C73: 1-yr | D73: =INDEX(I119:K147,G69,F71) -> 0.01
C74: 6-yr | D74: =INDEX(I119:K147,G70,F71) -> 0.8
C75: 20-yr | D75: =INDEX(I119:K147,F62,F71) -> 0.99
A77: Step 6: | B77: Risk Assessment
B79: Annual Owner Risk: | D79: =B32*D73*D6 -> 2633.5 | E79: =C73 -> 1-yr
D80: =B32*D74*D7 -> 35113.33333 | E80: =C74 -> 6-yr
D81: =B32*D75*D8 -> 13035.825 | E81: =C75 -> 20-yr
B83: Total Owner Risk: | D83: =SUM(D79:D81) -> 50782.65833
B85: Annual User Risk: | D85: =E56*D73*D6 -> 100578.4886 | E85: =C73 -> 1-yr
D86: =E56*D74*D7 -> 1341046.515 | E86: =C74 -> 6-yr
D87: =E56*D75*D8 -> 497863.5186 | E87: =C75 -> 20-yr
B89: Total User Risk: | D89: =SUM(D85:D87) -> 1939488.522
B91: Total Annual Risk: | D91: =D83+D89 -> 1990271.18
A94: Please customize the information from the standard below:
A96: Exhibits: | B96: 3.6
B97: Event | C97: Volume | D97: Annual Threat
B98: Magnitude | C98: (cu yds) | D98: Likelihood
B99: Small | C99: lt100 | D99: 1
B100: Medium | C100: 100to499 | D100: =1/6 -> 0.1666666667
B101: Large | C101: gt499 | D101: =1/20 -> 0.05
B103: 3.8
C104: Road
B105: Asset | C105: Type | D105: Units | E105: Unit Cost
B106: Approach | D106: sq ft | E106: 350
B107: Bridge | D107: sq ft | E107: 600
B108: CBC | D108: cu ft | E108: 55
B109: PTCS | D109: sq ft | E109: 550
B110: Roadway | C110: Asphalt | D110: sq yds | E110: 150
B111: Roadway | C111: Concrete | D111: sq yds | E111: 350
B113: Unit Cost: | C113: =INDEX(E110:E111,MATCH(D12,C110:C111,0)) -> 150 | D113: ($ / units)
B115: 4.1.1.12
B116: Magnitude | D116: Factors | I116: Vulnerability
B117: Return | D117: Natural or | I117: Mitigation
B118: Period | C118: Volume | D118: Cut Slope | E118: Lithology | F118: Ditch | G118: Width | H118: Monitored | I118: No | J118: Maintained | K118: Installed
B119: 1-yr | C119: lt100 | D119: Cut | E119: Rock Slope | F119: Absent | H119: Yes | I119: 0 | J119: 0 | K119: 0 | L119: 1
B120: 1-yr | C120: lt100 | D120: Cut | E120: Rock Slope | F120: Absent | H120: No | I120: 0.01 | J120: 0.01 | K120: 0 | L120: 2
B121: 1-yr | C121: lt100 | D121: Cut | E121: Rock Slope | F121: Present | H121: Yes | I121: 0 | J121: 0 | K121: 0 | L121: 3
B122: 1-yr | C122: lt100 | D122: Cut | E122: Rock Slope | F122: Present | H122: No | I122: 0.01 | J122: 0.01 | K122: 0 | L122: 4
B123: 1-yr | C123: lt100 | D123: Cut | E123: Non-Rock | F123: Absent | H123: Yes | I123: 0 | J123: 0 | K123: 0 | L123: 5
B124: 1-yr | C124: lt100 | D124: Cut | E124: Non-Rock | F124: Absent | H124: No | I124: 0.01 | J124: 0 | K124: 0 | L124: 6
B125: 1-yr | C125: lt100 | D125: Cut | E125: Non-Rock | F125: Present | H125: Yes | I125: 0 | J125: 0 | K125: 0 | L125: 7
B126: 1-yr | C126: lt100 | D126: Cut | E126: Non-Rock | F126: Present | H126: No | I126: 0.01 | J126: 0 | K126: 0 | L126: 8
B127: 1-yr | C127: lt100 | D127: Natural | E127: Rock Slope | F127: Absent | H127: Yes | I127: 0.01 | J127: 0 | K127: 0 | L127: 9
B128: 1-yr | C128: lt100 | D128: Natural | E128: Rock Slope | F128: Absent | H128: No | I128: 0.01 | J128: 0.01 | K128: 0 | L128: 10
B129: 1-yr | C129: lt100 | D129: Natural | E129: Rock Slope | F129: Present | H129: Yes | I129: 0 | J129: 0 | K129: 0 | L129: 11
B130: 1-yr | C130: lt100 | D130: Natural | E130: Rock Slope | F130: Present | H130: No | I130: 0.01 | J130: 0.01 | K130: 0 | L130: 12
B131: 1-yr | C131: lt100 | D131: Natural | E131: Non-Rock | F131: Absent | H131: Yes | I131: 0 | J131: 0 | K131: 0 | L131: 13
B132: 1-yr | C132: lt100 | D132: Natural | E132: Non-Rock | F132: Absent | H132: No | I132: 0.01 | J132: 0.01 | K132: 0 | L132: 14
B133: 1-yr | C133: lt100 | D133: Natural | E133: Non-Rock | F133: Present | H133: Yes | I133: 0 | J133: 0 | K133: 0 | L133: 15
B134: 1-yr | C134: lt100 | D134: Natural | E134: Non-Rock | F134: Present | H134: No | I134: 0.01 | J134: 0.01 | K134: 0 | L134: 16
B135: 6-yr | C135: 100to499 | D135: Cut | E135: Rock Slope | F135: Absent | G135: lte10 | H135: Yes | I135: 0.35 | J135: 0.3 | K135: 0.15 | L135: 17
B136: 6-yr | C136: 100to499 | D136: Cut | E136: Rock Slope | F136: Absent | G136: lte10 | H136: No | I136: 0.65 | J136: 0.5 | K136: 0.25 | L136: 18
B137: 6-yr | C137: 100to499 | D137: Cut | E137: Rock Slope | F137: Present | G137: gt10 | H137: Yes | I137: 0.3 | J137: 0.25 | K137: 0.15 | L137: 19
B138: 6-yr | C138: 100to499 | D138: Cut | E138: Rock Slope | F138: Present | G138: gt10 | H138: No | I138: 0.6 | J138: 0.45 | K138: 0.25 | L138: 20
B139: 6-yr | C139: 100to499 | D139: Cut | E139: Non-Rock | F139: Absent | G139: lte10 | H139: Yes | I139: 0.3 | J139: 0.25 | K139: 0.15 | L139: 21
B140: 6-yr | C140: 100to499 | D140: Cut | E140: Non-Rock | F140: Absent | G140: lte10 | H140: No | I140: 0.554 | J140: 0.45 | K140: 0.25 | L140: 22
B141: 6-yr | C141: 100to499 | D141: Cut | E141: Non-Rock | F141: Present | G141: gt10 | H141: Yes | I141: 0.25 | J141: 0.2 | K141: 0.1 | L141: 23
B142: 6-yr | C142: 100to499 | D142: Cut | E142: Non-Rock | F142: Present | G142: gt10 | H142: No | I142: 0.5 | J142: 0.4 | K142: 0.2 | L142: 24
B143: 6-yr | C143: 100to499 | D143: Natural | E143: Rock Slope | H143: Yes | I143: 0.4 | J143: 0.3 | K143: 0.15 | L143: 25
B144: 6-yr | C144: 100to499 | D144: Natural | E144: Rock Slope | H144: No | I144: 0.8 | J144: 0.5 | K144: 0.25 | L144: 26
B145: 6-yr | C145: 100to499 | D145: Natural | E145: Non-Rock | H145: Yes | I145: 0.35 | J145: 0.3 | K145: 0.15 | L145: 27
B146: 6-yr | C146: 100to499 | D146: Natural | E146: Non-Rock | H146: No | I146: 0.3 | J146: 0.25 | K146: 0.15 | L146: 28
B147: 20-yr | C147: gt499 | I147: 0.99 | J147: 0.99 | K147: 0.99 | L147: 29
B149: 3.13 | D149: (miles) | E149: (minutes)
B150: Start | C150: End | D150: Added Travel | E150: Added Travel
B151: Milepost | C151: Milepost | D151: Distance (C7) | E151: Time (Dt)
B152: 1 | C152: 14 | D152: 146 | E152: 189
B154: 3.1
C155: Threat
B156: Asset | C156: Debris | D156: Flood | E156: Scour | F156: Rockfall
B157: Approach | D157: =C163 -> 63333.33333
B158: Bridge | D158: =C163+5000 -> 68333.33333 | E158: =C163+5000 -> 68333.33333 | F158: =IF(D13<101,C163+200000,2500000) -> 263333.3333
B159: Culvert | C159: =C163+5000 -> 68333.33333 | D159: =C163+5000 -> 68333.33333
B160: PTCS | F160: =0.25*500*D14*C113+200000 -> 912500
B161: Roadway | C161: =C163+5000 -> 68333.33333 | D161: =C163+5000 -> 68333.33333 | F161: =(100*D14/9)*C113+200000 -> 263333.3333
B163: ARC: | C163: =(D13*D14/9)*C113 -> 63333.33333 | E163: =MATCH(C12,B157:B161,0) -> 5 | F163: =MATCH(C1,C156:F156,0) -> 4
B165: 3.11
I166: Year
B167: User Cost Terms | G167: Variable | H167: Value ($) | I167: Published
B168: Average Vehicle Occupancy | G168: 0 | H168: 1.77 | I168: 2019
B169: Car Running Cost per Mile | G169: C2 | H169: 0.59 | I169: 2019
B170: Truck Running Cost per Mile | G170: C3 | H170: 0.96 | I170: 2015
B171: Average Value of Time per Adult per Hour | G171: C4 | H171: 10.62 | I171: 2015
B172: Average Value of Freight Driver Cost per Hour | G172: C5 | H172: 25.31 | I172: 2015
B173: Car Running Cost per Mile | G173: C8 | H173: 26.52 | I173: 2015
B174: Truck Running Cost per Mile | G174: C9 | H174: 44.24 | I174: 2015
G176: A: | H176: <= half road width
G177: B: | H177: > half road width
G178: C: | H178: 2 directions
B179: 3.12
D180: Full Closure | E180: Part Closure
B181: Asset | C181: Threat | D181: Days (dFC) | E181: Days (dPC)
B182: Approach | C182: All | D182: 2 | E182: 0
B183: Bridge | C183: Flood | D183: 180 | E183: 0
B184: Bridge | C184: Debris | D184: 2 | E184: 0
B185: Bridge | C185: Rockfall | D185: 4 | E185: 14
B186: Culvert | C186: Flood | D186: 3 | E186: 0
B187: Culvert | C187: Debris | D187: 1 | E187: 0
B188: PTCS | C188: Rockfall | D188: 4 | E188: 14
B189: Road A | C189: Flood | D189: 1 | E189: 0
B190: Road B | C190: Flood | D190: 3 | E190: 0
B191: Road C | C191: Flood | D191: 3 | E191: 0
B192: Roadway | C192: Rockfall | D192: 4 | E192: 14

Sheet Flood-Roadway
A1: Problem: | C1: Flood
A4: Step 1: | B4: Threat Data Collection
B6: Recurrence Interval | D6: Annual Threat Likelihood
B7: 100 | C7: years | E7: =VLOOKUP(B7,B87:D94,3,FALSE) -> 0.01
B8: 500 | C8: years | E8: =VLOOKUP(B8,B87:D94,3,FALSE) -> 0.002
A13: Step 2: | B13: Asset Data Collection | F13: CODE | G13: Item Description | J13: CDOT Link
A14: Site Overview: | C14: Roadway | D14: Asphalt | E14: Road C
C15: Milepost: | D15: 12 | E15: 13 | F15: OTIS | G15: CDOT Mile Post | I15: CDOT OTIS Data Search Platform
C16: # Lanes: | D16: 4
B17: East | C17: Overtop MP: | D17: 12 | E17: 13
C18: Over Len: | D18: 5914 | E18: (feet) | G18: Overtop Length
B19: Area Over: | C19: 100-yr | D19: 22587 | E19: (sq yds) | G19: Area over 100 yr Event
C20: 500-yr | D20: 22587 | E20: (sq yds) | G20: Area over 500 yr Event
B21: =IF(B17="East","West",IF(B17="North","South",IF(B17="West","East",IF(B17="South","North","West")))) -> West | C21: Overtop MP: | D21: 12 | E21: 13 | F21: OTIS | G21: CDOT Mile Post | I21: CDOT OTIS Data Search Platform
C22: Over Len: | D22: 6758 | E22: (feet) | G22: Overtop Length
C23: 100-yr | D23: 25615 | G23: Area over 100 yr Event
C24: 500-yr | D24: 25615 | G24: Area over 500 yr Event
B25: Total: | C25: AADT Veh: | D25: 20490 | E25: (vehicle) | F25: OTIS | G25: Avg. Annual Daily Traffic (all) | I25: CDOT OTIS Data Search Platform
C26: AADT Trck: | D26: 2510 | E26: (truck) | F26: OTIS | G26: Avg. Annual Daily Traffic (trucks) | I26: CDOT OTIS Data Search Platform
C27: Car User: | D27: C2 | E27: C4
C28: Trck User: | D28: C3 | E28: C5
C29: Occup: | D29: 0
C30: Slope: | D30: Low
C31: Cover: | D31: Shrubs
B32: Soil: | C32: Class: | D32: A1toA3
C33: Frost: | D33: Moderate
C34: Terrain: | D34: Mountainous
A36: Step 3: | B36: Owner Consequence
B39: =C19 -> 100-yr | C39: =INDEX(C116:F120,MATCH(C14,B116:B120,1),MATCH(C1,C115:F115,1)) -> 3393050 | D39: =B17 -> East
B40: =C20 -> 500-yr | C40: =INDEX(C124:F128,MATCH(C14,B124:B128,1),MATCH(C1,C123:F123,1)) -> 3393050
B41: =C23 -> 100-yr | C41: =INDEX(I116:L120,MATCH(C14,H116:H120,1),MATCH(C1,I115:L115,1)) -> 3847250 | D41: =B21 -> West
B42: =C24 -> 500-yr | C42: =INDEX(I124:L128,MATCH(C14,H124:H128,1),MATCH(C1,I123:L123,1)) -> 3847250
A45: Step 4: | B45: User Consequence
B46: Full Closure: | G46: Dt: | H46: =INDEX(E111:E111,MATCH(C50,D111:D111,)) -> 189 | I46: mins
B47: Avg Veh: | C47: =0.5*D25 -> 10245 | D47: Veh Cost: | E47: =VLOOKUP(D27,G137:H143,2) -> 0.59 | G47: Veh: | H47: =VLOOKUP(E27,G137:H143,2) -> 10.62
B48: Avg Trck: | C48: =0.5*D26 -> 1255 | D48: Trck Cost: | E48: =VLOOKUP(D28,G137:H143,2) -> 0.96 | G48: Trck: | H48: =VLOOKUP(E28,G137:H143,2) -> 25.31
B49: dFC: | C49: =SUMPRODUCT((B151:B161=E14)*(D151:D161)) -> 3 | G49: O: | H49: =VLOOKUP(D29,G137:H143,2) -> 1.77
B50: C7: | C50: =LOOKUP(2,1/(B111:B111<=E15)/(C111:C111>=D15),D111:D111) -> 146 | D50: VOC.FC: | E50: =(E47*C47+E48*C48)*C49*C50 -> 3175215.3 | F50: each | G50: LW.FC: | H50: =(H47*H49*C47+H48*C48)*C49*H46/60 -> 2120045.253 | I50: each
D52: Total: | E52: =E50+H50 -> 5295260.553 | F52: each | G52: Site: | H52: =2*E52 -> 10590521.11
A56: Step 5: | B56: Vulnerability Assessment
B58: Soil Classification: | E58: =D32 -> A1toA3
B59: Frost Action: | E59: =D33 -> Moderate
B61: Embankment Erodibility Potential: | E61: =INDEX(C166:F167,MATCH(E58,B166:B167,0),MATCH(E59,C165:F165,0)) -> Moderate
B63: Terrain: | E63: =D34 -> Mountainous | F63: 100-yr Ind: | G63: =MATCH(E63,C172:C174,0) -> 3
F64: 500-yr Ind: | G64: =3+MATCH(E63,C175:C177,0) -> 6
B65: 100-year | E65: =INDEX(D172:H177,G63,MATCH(E61,D171:H171,0)) -> 0.4
B66: 500-year | E66: =INDEX(D172:H177,G64,MATCH(E61,D171:H171,0)) -> 0.99
A69: Step 6: | B69: Risk Assessment
B71: Annual Owner Risk: | D71: 100-year | E71: =B17 -> East | F71: =C39*E65*(1/100) -> 13572.2 | H71: Annual User Risk: | J71: 100-year | K71: =B17 -> East | L71: =E52*E65*(1/100) -> 21181.04221
E72: =B21 -> West | F72: =C41*E65*(1/100) -> 15389 | K72: =B21 -> West | L72: =E52*E65*(1/100) -> 21181.04221
D74: 500-year | E74: =B17 -> East | F74: =C39*E66*(1/500) -> 6718.239 | J74: 500-year | K74: =B17 -> East | L74: =E52*E66*(1/500) -> 10484.61589
E75: =B21 -> West | F75: =C42*E66*(1/500) -> 7617.555 | K75: =B21 -> West | L75: =E52*E66*(1/500) -> 10484.61589
B77: Total Owner Risk: | F77: =SUM(F71:F75) -> 43296.994 | H77: Total User Risk: | L77: =SUM(L71:L75) -> 63331.31621
H79: Total Annual Risk: | L79: =F77+L77 -> 106628.3102
A82: Please customize the information from the standard below:
A84: Exhibits: | B84: 3.6
D85: Annual Threat
B86: Recurrence Interval | D86: Likelihood
B87: 1 | C87: year | D87: 1
B88: 2 | C88: years | D88: =1/2 -> 0.5
B89: 5 | C89: years | D89: =1/5 -> 0.2
B90: 10 | C90: years | D90: =1/10 -> 0.1
B91: 25 | C91: years | D91: =1/25 -> 0.04
B92: 50 | C92: years | D92: =1/50 -> 0.02
B93: 100 | C93: years | D93: =1/100 -> 0.01
B94: 500 | C94: years | D94: =1/500 -> 0.002
B96: 3.8
C97: Road
B98: Asset | C98: Type | D98: Units | E98: Unit Cost
B99: Approach | D99: sq ft | E99: 350
B100: Bridge | D100: sq ft | E100: 600
B101: CBC | D101: cu ft | E101: 55
B102: PTCS | D102: sq ft | E102: 550
B103: Roadway | C103: Asphalt | D103: sq yds | E103: 150
B104: Roadway | C104: Concrete | D104: sq yds | E104: 350
B106: Unit Cost: | C106: =INDEX(E99:E104,MATCH(C14,B99:B104,0)) -> 150 | D106: ($ / units)
B108: 3.13 | D108: (miles) | E108: (minutes)
B109: Start | C109: End | D109: Added Travel | E109: Added Travel
B110: Milepost | C110: Milepost | D110: Distance (C7) | E110: Time (Dt)
B111: 1 | C111: 14 | D111: 146 | E111: 189
B113: 3.1
C114: Threat | G114: =B17 -> East | I114: Threat | M114: =B21 -> West
B115: Asset | C115: Debris | D115: Flood | E115: Scour | F115: Rockfall | H115: Asset | I115: Debris | J115: Flood | K115: Scour | L115: Rockfall
B116: Approach | D116: =C130 -> 3388050 | H116: Approach | J116: =I130 -> 3842250
B117: Bridge | D117: =C130+5000 -> 3393050 | E117: =C130+5000 -> 3393050 | F117: =IF((E17-D17)<100,C130+200000,2500000) -> 3588050 | H117: Bridge | J117: =I130+5000 -> 3847250 | K117: =I130+5000 -> 3847250 | L117: =IF((F89-E89)<100,I130+200000,2500000) -> 4042250
B118: Culvert | C118: =C130+5000 -> 3393050 | D118: =C130+5000 -> 3393050 | H118: Culvert | I118: =I130+5000 -> 3847250 | J118: =I130+5000 -> 3847250
B119: PTCS | F119: =0.25*500*48*C106+200000 -> 1100000 | H119: PTCS | L119: =0.25*500*48*C106+200000 -> 1100000 | O119: Approach Directions: | Q119: Soil Classification | S119: Frost Action | U119: Terrain
B120: Roadway | C120: =C130+5000 -> 3393050 | D120: =C130+5000 -> 3393050 | F120: =100*48*C106+200000 -> 920000 | H120: Roadway | I120: =I130+5000 -> 3847250 | J120: =I130+5000 -> 3847250 | L120: =100*48*C106+200000 -> 920000 | O120: East | Q120: A1toA3 | S120: None | U120: Level
O121: West | Q121: A4toA8 | S121: Low | U121: Rolling
C122: Threat | G122: =B21 -> West | I122: Threat | M122: =B21 -> West | O122: North | S122: Moderate | U122: Mountainous
B123: Asset | C123: Debris | D123: Flood | E123: Scour | F123: Rockfall | H123: Asset | I123: Debris | J123: Flood | K123: Scour | L123: Rockfall | O123: South | S123: High
B124: Approach | D124: =C131 -> 3388050 | H124: Approach | J124: =I131 -> 3842250
B125: Bridge | D125: =C131+5000 -> 3393050 | E125: =C131+5000 -> 3393050 | F125: =IF((E17-D17)<100,C131+200000,2500000) -> 3588050 | H125: Bridge | J125: =I131+5000 -> 3847250 | K125: =I131+5000 -> 3847250 | L125: =IF((F89-E89)<100,I131+200000,2500000) -> 4042250
B126: Culvert | C126: =C131+5000 -> 3393050 | D126: =C131+5000 -> 3393050 | H126: Culvert | I126: =I131+5000 -> 3847250 | J126: =I131+5000 -> 3847250
B127: PTCS | F127: =0.25*500*48*C106+200000 -> 1100000 | H127: PTCS | L127: =0.25*500*48*C106+200000 -> 1100000
B128: Roadway | C128: =C131+5000 -> 3393050 | D128: =C131+5000 -> 3393050 | F128: =100*48*C106+200000 -> 920000 | H128: Roadway | I128: =I131+5000 -> 3847250 | J128: =I131+5000 -> 3847250 | L128: =100*48*C106+200000 -> 920000
B130: ARC: | C130: =D19*C106 -> 3388050 | D130: for the: | E130: =B17 -> East | F130: =C19 -> 100-yr | G130: event | H130: ARC: | I130: =D23*C106 -> 3842250 | J130: for the: | K130: =B21 -> West | L130: =C23 -> 100-yr | M130: event
C131: =D20*C106 -> 3388050 | D131: for the: | E131: =B17 -> East | F131: =C20 -> 500-yr | G131: event | I131: =D24*C106 -> 3842250 | J131: for the: | K131: =B21 -> West | L131: =C24 -> 500-yr | M131: event
C132: =C130+C131 -> 6776100 | D132: total | I132: =I130+I131 -> 7684500 | J132: total
B134: 3.11
I135: Year
B136: User Cost Terms | G136: Variable | H136: Value ($) | I136: Published
B137: Average Vehicle Occupancy | G137: 0 | H137: 1.77 | I137: 2019
B138: Car Running Cost per Mile | G138: C2 | H138: 0.59 | I138: 2019
B139: Truck Running Cost per Mile | G139: C3 | H139: 0.96 | I139: 2015
B140: Average Value of Time per Adult per Hour | G140: C4 | H140: 10.62 | I140: 2015
B141: Average Value of Freight Driver Cost per Hour | G141: C5 | H141: 25.31 | I141: 2015
B142: Car Running Cost per Mile | G142: C8 | H142: 26.52 | I142: 2015
B143: Truck Running Cost per Mile | G143: C9 | H143: 44.24 | I143: 2015
G145: A: | H145: <= half road width
G146: B: | H146: > half road width
G147: C: | H147: 2 directions
B148: 3.12
D149: Full Closure | E149: Part Closure
B150: Asset | C150: Threat | D150: Days (dFC) | E150: Days (dPC)
B151: Approach | C151: All | D151: 2 | E151: 0
B152: Bridge | C152: Flood | D152: 180 | E152: 0
B153: Bridge | C153: Debris | D153: 2 | E153: 0
B154: Bridge | C154: Rockfall | D154: 4 | E154: 14
B155: Culvert | C155: Flood | D155: 3 | E155: 0
B156: Culvert | C156: Debris | D156: 1 | E156: 0
B157: PTCS | C157: Rockfall | D157: 4 | E157: 14
B158: Road A | C158: Flood | D158: 1 | E158: 0
B159: Road B | C159: Flood | D159: 3 | E159: 0
B160: Road C | C160: Flood | D160: 3 | E160: 0
B161: Roadway | C161: Rockfall | D161: 4 | E161: 14
B163: 4.2.1.15
B164: Soil | C164: Frost Action
B165: Class | C165: None | D165: Low | E165: Moderate | F165: High
B166: A1toA3 | C166: Very Low | D166: Low | E166: Moderate | F166: High
B167: A4toA8 | C167: Moderate | D167: High | E167: Very High | F167: Very High
B169: 4.2.1.16
B170: Flood | D170: Embankment Erodibility Potential
B171: Event | C171: Terrain | D171: Very Low | E171: Low | F171: Moderate | G171: High | H171: Very High
B172: 100-yr | C172: Level | D172: 0.22 | E172: 0.23 | F172: 0.25 | G172: 0.31 | H172: 0.33
B173: 100-yr | C173: Rolling | D173: 0.26 | E173: 0.28 | F173: 0.3 | G173: 0.36 | H173: 0.39
B174: 100-yr | C174: Mountainous | D174: 0.35 | E174: 0.37 | F174: 0.4 | G174: 0.48 | H174: 0.52
B175: 500-yr | C175: Level | D175: 0.55 | E175: 0.59 | F175: 0.63 | G175: 0.77 | H175: 0.83
B176: 500-yr | C176: Rolling | D176: 0.66 | E176: 0.7 | F176: 0.75 | G176: 0.91 | H176: 0.99
B177: 500-yr | C177: Mountainous | D177: 0.88 | E177: 0.93 | F177: 0.99 | G177: 0.99 | H177: 0.99
B179: 4.2.2.8
B180: Site | C180: Landcover
B181: Slopes | C181: Water & Snow | D181: Urban | E181: Shrubs | F181: Trees
B182: Low | C182: Very Low | D182: Low | E182: Moderate | F182: Moderate
B183: Moderate | C183: Very Low | D183: Moderate | E183: High | F183: High
B184: High | C184: Very Low | D184: High | E184: High | F184: Very High
B188: Debris Potential Factor: | E188: =INDEX(C182:F184,MATCH(D30,B182:B184,0),MATCH(D31,C181:F181,0)) -> Moderate

Sheet Flood-Bridge
A1: Problem: | C1: Flood
A4: Step 1: | B4: Threat Data Collection
B6: Recurrence Interval | D6: Annual Threat Likelihood
B7: 100 | C7: years | E7: =VLOOKUP(B7,B75:D82,3,FALSE) -> 0.01
B8: 500 | C8: years | E8: =VLOOKUP(B8,B76:D83,3,FALSE) -> 0.002
A13: Step 2: | B13: Asset Data Collection
A14: Site Overview: | C14: Bridge | F14: CODE | G14: Item Description | J14: CDOT Link
C15: Length: | D15: 83 | E15: (feet) | F15: NBI 49 | G15: Structure Length | I15: Staff Bridge Major Structure Inventory (link)
C16: Width: | D16: 42 | E16: (feet) | F16: NBI 52 | G16: Width Out to Out | I16: Staff Bridge Major Structure Inventory (link)
B17: Span Length: | D17: 38 | E17: (feet) | F17: NBI 48 | G17: Max Span | I17: Staff Bridge Major Structure Inventory (link)
B18: Superstructure: | D18: 6 | F18: NBI 59 | G18: Super | I18: Staff Bridge Major Structure Inventory (link)
B19: Substructure: | D19: 7 | F19: NBI 60 | G19: Sub | I19: Staff Bridge Major Structure Inventory (link)
B20: Scour Condition: | D20: 5 | F20: NBI 113 | G20: Scour Critical | I20: Staff Bridge Major Structure Inventory (link)
B21: Total: | C21: AADT Veh: | D21: 8200 | E21: (vehicle) | F21: OTIS | G21: Avg. Annual Daily Traffic (all) | I21: CDOT OTIS Data Search Platform
C22: AADT Trck: | D22: 2800 | E22: (truck) | F22: OTIS | G22: Avg. Annual Daily Traffic (trucks) | I22: CDOT OTIS Data Search Platform
C23: Milepost: | D23: 7 | F23: OTIS | G23: CDOT Mile Post | I23: CDOT OTIS Data Search Platform
C24: Car User: | D24: C2 | E24: C4
C25: Trck User: | D25: C3 | E25: C5
C26: Occup: | D26: 0
C27: Slope: | D27: Low
C28: Cover: | D28: Shrubs
A30: Step 3: | B30: Owner Consequence
B33: =INDEX(C104:F108,MATCH(C14,B104:B108,1),MATCH(C1,C103:F103,1)) -> 2096600
A39: Step 4: | B39: User Consequence
B40: Full Closure: | G40: Dt: | H40: =VLOOKUP(C44,D99:E99,2) -> 189 | I40: mins
B41: Avg Veh: | C41: =0.5*D21 -> 4100 | D41: Veh Cost: | E41: =VLOOKUP(D24,G115:H121,2) -> 0.59 | G41: Veh: | H41: =VLOOKUP(E24,G115:H121,2) -> 10.62
B42: Avg Trck: | C42: =0.5*D22 -> 1400 | D42: Trck Cost: | E42: =VLOOKUP(D25,G115:H121,2) -> 0.96 | G42: Trck: | H42: =VLOOKUP(E25,G115:H121,2) -> 25.31
B43: dFC: | C43: =SUMPRODUCT((B129:B139=C14)*(C129:C139=C1)*(D129:D139)) -> 180 | G43: O: | H43: =VLOOKUP(D26,G115:H121,2) -> 1.77
B44: C7: | C44: =LOOKUP(2,1/(B99:B99<=D23)/(C99:C99>=D23),D99:D99) -> 146 | D44: VOC.FC: | E44: =(E41*C41+E42*C42)*C43*C44 -> 98891640 | G44: LW.FC: | H44: =(H41*H43*C41+H42*C42)*C43*H40/60 -> 63789393.78
D46: Total: | E46: =E44+H44 -> 162681033.8
A48: Step 5: | B48: Vulnerability Assessment
B49: HC Values: | D49: Hydraulic Capacity: | F49: 50 | G49: years | H49: (based on Exhibit 4.2.2.5?)
B50: 50 | D50: HC: | F50: =IF(F49=100,"100-yr","50-yr") -> 50-yr | G50: HC Index: | H50: =MATCH(F50,B156:B195,0) -> 21
B51: 100 | D51: Debris: | F51: =E150 -> Moderate | G51: D Index: | H51: =MATCH(F51,C156:C195,0) -> 9 | I51: =H50+H51-1 -> 29
D52: Scour: | F52: =IF(D20<4,"0to3","4to9") -> 4to9 | G52: Sc Index: | H52: =MATCH(F52,D156:D195,0) -> 1 | I52: =I51+H52-1 -> 29
D53: Span: | F53: =IF(D17>30,"> 30 ft","else") -> > 30 ft | G53: Sp Index: | H53: =MATCH(F53,E156:E195,0) -> 1 | I53: =I52+H53-1 -> 29
D54: Super: | F54: =IF(D18<5,"0to4",IF(D18<7,"5to6","7to9")) -> 5to6 | G54: Sup Index: | H54: =MATCH(F54,F153:N153,0) -> 4
D55: Sub: | F55: =IF(D19<5,"0to4",IF(D19<7,"5to6","7to9")) -> 7to9 | G55: Sub Index: | H55: =MATCH(F55,F155:N155,0) -> 1 | I55: =H54+H55-1 -> 4
D56: 100-year magnitude: | F56: =INDEX(F156:N195,I53,I55) -> 0.009
D57: 500-year magnitude: | F57: =INDEX(T156:AB195,I53,I55) -> 0.133
A60: Step 6: | B60: Risk Assessment
B62: Annual Owner Risk: | D62: =B7 -> 100 | E62: year | F62: =B33*F56*E7 -> 188.694 | H62: Annual User Risk: | J62: =B7 -> 100 | K62: year | L62: =E46*F56*E7 -> 14641.29304
D63: =B8 -> 500 | E63: year | F63: =B33*F57*E8 -> 557.6956 | J63: =B8 -> 500 | K63: year | L63: =E46*F57*E8 -> 43273.15499
B65: Total Owner Risk: | F65: =F62+F63 -> 746.3896 | H65: Total User Risk: | L65: =L62+L63 -> 57914.44803
H67: Total Annual Risk: | L67: =F65+L65 -> 58660.83763
A70: Please customize the information from the standard below:
A72: Exhibits: | B72: 3.6
D73: Annual Threat
B74: Recurrence Interval | D74: Likelihood
B75: 1 | C75: year | D75: 1
B76: 2 | C76: years | D76: =1/2 -> 0.5
B77: 5 | C77: years | D77: =1/5 -> 0.2
B78: 10 | C78: years | D78: =1/10 -> 0.1
B79: 25 | C79: years | D79: =1/25 -> 0.04
B80: 50 | C80: years | D80: =1/50 -> 0.02
B81: 100 | C81: years | D81: =1/100 -> 0.01
B82: 500 | C82: years | D82: =1/500 -> 0.002
B84: 3.8
C85: Road
B86: Asset | C86: Type | D86: Units | E86: Unit Cost
B87: Approach | D87: sq ft | E87: 350
B88: Bridge | D88: sq ft | E88: 600
B89: CBC | D89: cu ft | E89: 55
B90: PTCS | D90: sq ft | E90: 550
B91: Roadway | C91: Asphalt | D91: sq yds | E91: 150
B92: Roadway | C92: Concrete | D92: sq yds | E92: 350
B94: Unit Cost: | C94: =INDEX(E87:E92,MATCH(C14,B87:B92,0)) -> 600 | D94: ($ / units)
B96: 3.13 | D96: (miles) | E96: (minutes)
B97: Start | C97: End | D97: Added Travel | E97: Added Travel
B98: Milepost | C98: Milepost | D98: Distance (C7) | E98: Time (Dt)
B99: 1 | C99: 14 | D99: 146 | E99: 189
B101: 3.1
C102: Threat
B103: Asset | C103: Debris | D103: Flood | E103: Scour | F103: Rockfall
B104: Approach | D104: =C110 -> 2091600
B105: Bridge | D105: =C110+5000 -> 2096600 | E105: =C110+5000 -> 2096600 | F105: =IF(D15<100,C110+200000,2500000) -> 2291600
B106: Culvert | C106: =C110+5000 -> 2096600 | D106: =C110+5000 -> 2096600
B107: PTCS | F107: =0.25*500*D16*C94+200000 -> 3350000
B108: Roadway | C108: =C110+5000 -> 2096600 | D108: =C110+5000 -> 2096600 | F108: =100*D16*C94+200000 -> 2720000
B110: ARC: | C110: =D16*D15*C94 -> 2091600
B112: 3.11
I113: Year
B114: User Cost Terms | G114: Variable | H114: Value ($) | I114: Published
B115: Average Vehicle Occupancy | G115: 0 | H115: 1.77 | I115: 2019
B116: Car Running Cost per Mile | G116: C2 | H116: 0.59 | I116: 2019
B117: Truck Running Cost per Mile | G117: C3 | H117: 0.96 | I117: 2015
B118: Average Value of Time per Adult per Hour | G118: C4 | H118: 10.62 | I118: 2015
B119: Average Value of Freight Driver Cost per Hour | G119: C5 | H119: 25.31 | I119: 2015
B120: Car Running Cost per Mile | G120: C8 | H120: 26.52 | I120: 2015
B121: Truck Running Cost per Mile | G121: C9 | H121: 44.24 | I121: 2015
G123: A: | H123: <= half road width
G124: B: | H124: > half road width
G125: C: | H125: 2 directions
B126: 3.12
D127: Full Closure | E127: Part Closure
B128: Asset | C128: Threat | D128: Days (dFC) | E128: Days (dPC)
B129: Approach | C129: All | D129: 2 | E129: 0
B130: Bridge | C130: Flood | D130: 180 | E130: 0
B131: Bridge | C131: Debris | D131: 2 | E131: 0
B132: Bridge | C132: Rockfall | D132: 4 | E132: 14
B133: Culvert | C133: Flood | D133: 3 | E133: 0
B134: Culvert | C134: Debris | D134: 1 | E134: 0
B135: PTCS | C135: Rockfall | D135: 4 | E135: 14
B136: Road A | C136: Flood | D136: 1 | E136: 0
B137: Road B | C137: Flood | D137: 3 | E137: 0
B138: Road C | C138: Flood | D138: 3 | E138: 0
B139: Roadway | C139: Rockfall | D139: 4 | E139: 14
B141: 4.2.2.8
B142: Site | C142: Landcover
B143: Slopes | C143: Water & Snow | D143: Urban | E143: Shrubs | F143: Trees
B144: Low | C144: Very Low | D144: Low | E144: Moderate | F144: Moderate
B145: Moderate | C145: Very Low | D145: Moderate | E145: High | F145: High
B146: High | C146: Very Low | D146: High | E146: High | F146: Very High
B150: Debris Potential Factor: | E150: =INDEX(C144:F146,MATCH(D27,B144:B146,0),MATCH(D28,C143:F143,0)) -> Moderate
B152: 4.2.2.9 | F152: Superstructure Condition | P152: 4.2.2.10 | T152: Superstructure Condition
F153: 7to9 | G153: 7to9 | H153: 7to9 | I153: 5to6 | J153: 5to6 | K153: 5to6 | L153: 0to4 | M153: 0to4 | N153: 0to4 | T153: 7to9 | W153: 5to6 | Z153: 0to4
F154: Substructure Condition | I154: Substructure Condition | L154: Substructure Condition | T154: Substructure Condition | W154: Substructure Condition | Z154: Substructure Condition
B155: Hydraulic | C155: Debris | D155: Scour | E155: Span | F155: 7to9 | G155: 5to6 | H155: 0to4 | I155: 7to9 | J155: 5to6 | K155: 0to4 | L155: 7to9 | M155: 5to6 | N155: 0to4 | P155: Hydraulic | Q155: Debris | R155: Scour | S155: Span | T155: 7to9 | U155: 5to6 | V155: 0to4 | W155: 7to9 | X155: 5to6 | Y155: 0to4 | Z155: 7to9 | AA155: 5to6 | AB155: 0to4
B156: 100-yr | C156: Very Low | D156: 4to9 | E156: > 30 ft | F156: 0.001 | G156: 0.003 | H156: 0.015 | I156: 0.002 | J156: 0.005 | K156: 0.028 | L156: 0.006 | M156: 0.016 | N156: 0.085 | O156: 1 | P156: 100-yr | Q156: Very Low | R156: 4to9 | S156: > 30 ft | T156: 0.015 | U156: 0.038 | V156: 0.206 | W156: 0.028 | X156: 0.071 | Y156: 0.386 | Z156: 0.085 | AA156: 0.219 | AB156: 0.5
B157: 100-yr | C157: Very Low | D157: 4to9 | E157: else | F157: 0.001 | G157: 0.004 | H157: 0.02 | I157: 0.003 | J157: 0.007 | K157: 0.038 | L157: 0.008 | M157: 0.021 | N157: 0.117 | O157: 2 | S157: else | T157: 0.02 | U157: 0.052 | V157: 0.282 | W157: 0.038 | X157: 0.097 | Y157: 0.5 | Z157: 0.117 | AA157: 0.3 | AB157: 0.5
B158: 100-yr | C158: Very Low | D158: 0to3 | E158: > 30 ft | F158: 0.206 | G158: 0.5 | H158: 0.5 | I158: 0.386 | J158: 0.5 | K158: 0.5 | L158: 0.5 | M158: 0.5 | N158: 0.5 | O158: 3 | R158: 0to3 | S158: > 30 ft | T158: 0.5 | U158: 0.5 | V158: 0.5 | W158: 0.5 | X158: 0.5 | Y158: 0.5 | Z158: 0.5 | AA158: 0.5 | AB158: 0.5
B159: 100-yr | C159: Very Low | D159: 0to3 | E159: else | F159: 0.282 | G159: 0.5 | H159: 0.5 | I159: 0.5 | J159: 0.5 | K159: 0.5 | L159: 0.5 | M159: 0.5 | N159: 0.5 | O159: 4 | S159: else | T159: 0.5 | U159: 0.5 | V159: 0.5 | W159: 0.5 | X159: 0.5 | Y159: 0.5 | Z159: 0.5 | AA159: 0.5 | AB159: 0.5
B160: 100-yr | C160: Low | D160: 4to9 | E160: > 30 ft | F160: 0.001 | G160: 0.003 | H160: 0.017 | I160: 0.002 | J160: 0.006 | K160: 0.031 | L160: 0.007 | M160: 0.018 | N160: 0.097 | O160: 5 | Q160: Low | R160: 4to9 | S160: > 30 ft | T160: 0.017 | U160: 0.043 | V160: 0.233 | W160: 0.031 | X160: 0.08 | Y160: 0.437 | Z160: 0.097 | AA160: 0.249 | AB160: 0.5
B161: 100-yr | C161: Low | D161: 4to9 | E161: else | F161: 0.002 | G161: 0.004 | H161: 0.023 | I161: 0.003 | J161: 0.008 | K161: 0.043 | L161: 0.009 | M161: 0.024 | N161: 0.133 | O161: 6 | S161: else | T161: 0.023 | U161: 0.059 | V161: 0.32 | W161: 0.043 | X161: 0.11 | Y161: 0.5 | Z161: 0.133 | AA161: 0.34 | AB161: 0.5
B162: 100-yr | C162: Low | D162: 0to3 | E162: > 30 ft | F162: 0.233 | G162: 0.5 | H162: 0.5 | I162: 0.437 | J162: 0.5 | K162: 0.5 | L162: 0.5 | M162: 0.5 | N162: 0.5 | O162: 7 | R162: 0to3 | S162: > 30 ft | T162: 0.5 | U162: 0.5 | V162: 0.5 | W162: 0.5 | X162: 0.5 | Y162: 0.5 | Z162: 0.5 | AA162: 0.5 | AB162: 0.5
B163: 100-yr | C163: Low | D163: 0to3 | E163: else | F163: 0.32 | G163: 0.5 | H163: 0.5 | I163: 0.5 | J163: 0.5 | K163: 0.5 | L163: 0.5 | M163: 0.5 | N163: 0.5 | O163: 8 | S163: else | T163: 0.5 | U163: 0.5 | V163: 0.5 | W163: 0.5 | X163: 0.5 | Y163: 0.5 | Z163: 0.5 | AA163: 0.5 | AB163: 0.5
B164: 100-yr | C164: Moderate | D164: 4to9 | E164: > 30 ft | F164: 0.001 | G164: 0.003 | H164: 0.019 | I164: 0.003 | J164: 0.007 | K164: 0.035 | L164: 0.008 | M164: 0.02 | N164: 0.11 | O164: 9 | Q164: Mod | R164: 4to9 | S164: > 30 ft | T164: 0.019 | U164: 0.049 | V164: 0.265 | W164: 0.035 | X164: 0.091 | Y164: 0.496 | Z164: 0.11 | AA164: 0.282 | AB164: 0.5
B165: 100-yr | C165: Moderate | D165: 4to9 | E165: else | F165: 0.002 | G165: 0.005 | H165: 0.026 | I165: 0.003 | J165: 0.009 | K165: 0.049 | L165: 0.011 | M165: 0.028 | N165: 0.15 | O165: 10 | S165: else | T165: 0.026 | U165: 0.066 | V165: 0.362 | W165: 0.049 | X165: 0.125 | Y165: 0.5 | Z165: 0.15 | AA165: 0.386 | AB165: 0.5
B166: 100-yr | C166: Moderate | D166: 0to3 | E166: > 30 ft | F166: 0.265 | G166: 0.5 | H166: 0.5 | I166: 0.496 | J166: 0.5 | K166: 0.5 | L166: 0.5 | M166: 0.5 | N166: 0.5 | O166: 11 | R166: 0to3 | S166: > 30 ft | T166: 0.5 | U166: 0.5 | V166: 0.5 | W166: 0.5 | X166: 0.5 | Y166: 0.5 | Z166: 0.5 | AA166: 0.5 | AB166: 0.5
B167: 100-yr | C167: Moderate | D167: 0to3 | E167: else | F167: 0.362 | G167: 0.5 | H167: 0.5 | I167: 0.5 | J167: 0.5 | K167: 0.5 | L167: 0.5 | M167: 0.5 | N167: 0.5 | O167: 12 | S167: else | T167: 0.5 | U167: 0.5 | V167: 0.5 | W167: 0.5 | X167: 0.5 | Y167: 0.5 | Z167: 0.5 | AA167: 0.5 | AB167: 0.5
B168: 100-yr | C168: High | D168: 4to9 | E168: > 30 ft | F168: 0.002 | G168: 0.004 | H168: 0.021 | I168: 0.003 | J168: 0.007 | K168: 0.04 | L168: 0.009 | M168: 0.023 | N168: 0.125 | O168: 13 | Q168: High | R168: 4to9 | S168: > 30 ft | T168: 0.021 | U168: 0.055 | V168: 0.3 | W168: 0.04 | X168: 0.103 | Y168: 0.5 | Z168: 0.125 | AA168: 0.32 | AB168: 0.5
B169: 100-yr | C169: High | D169: 4to9 | E169: else | F169: 0.002 | G169: 0.005 | H169: 0.029 | I169: 0.004 | J169: 0.01 | K169: 0.055 | L169: 0.012 | M169: 0.031 | N169: 0.171 | O169: 14 | S169: else | T169: 0.029 | U169: 0.075 | V169: 0.411 | W169: 0.055 | X169: 0.141 | Y169: 0.5 | Z169: 0.171 | AA169: 0.437 | AB169: 0.5
B170: 100-yr | C170: High | D170: 0to3 | E170: > 30 ft | F170: 0.3 | G170: 0.5 | H170: 0.5 | I170: 0.5 | J170: 0.5 | K170: 0.5 | L170: 0.5 | M170: 0.5 | N170: 0.5 | O170: 15 | R170: 0to3 | S170: > 30 ft | T170: 0.5 | U170: 0.5 | V170: 0.5 | W170: 0.5 | X170: 0.5 | Y170: 0.5 | Z170: 0.5 | AA170: 0.5 | AB170: 0.5
B171: 100-yr | C171: High | D171: 0to3 | E171: else | F171: 0.411 | G171: 0.5 | H171: 0.5 | I171: 0.5 | J171: 0.5 | K171: 0.5 | L171: 0.5 | M171: 0.5 | N171: 0.5 | O171: 16 | S171: else | T171: 0.5 | U171: 0.5 | V171: 0.5 | W171: 0.5 | X171: 0.5 | Y171: 0.5 | Z171: 0.5 | AA171: 0.5 | AB171: 0.5
B172: 100-yr | C172: Very High | D172: 4to9 | E172: > 30 ft | F172: 0.002 | G172: 0.005 | H172: 0.028 | I172: 0.004 | J172: 0.009 | K172: 0.052 | L172: 0.011 | M172: 0.029 | N172: 0.16 | O172: 17 | Q172: Very High | R172: 4to9 | S172: > 30 ft | T172: 0.028 | U172: 0.071 | V172: 0.386 | W172: 0.052 | X172: 0.133 | Y172: 0.5 | Z172: 0.16 | AA172: 0.411 | AB172: 0.5
B173: 100-yr | C173: Very High | D173: 4to9 | E173: else | F173: 0.003 | G173: 0.007 | H173: 0.038 | I173: 0.005 | J173: 0.013 | K173: 0.071 | L173: 0.016 | M173: 0.04 | N173: 0.219 | O173: 18 | S173: else | T173: 0.038 | U173: 0.097 | V173: 0.5 | W173: 0.071 | X173: 0.182 | Y173: 0.5 | Z173: 0.219 | AA173: 0.5 | AB173: 0.5
B174: 100-yr | C174: Very High | D174: 0to3 | E174: > 30 ft | F174: 0.386 | G174: 0.5 | H174: 0.5 | I174: 0.5 | J174: 0.5 | K174: 0.5 | L174: 0.5 | M174: 0.5 | N174: 0.5 | O174: 19 | R174: 0to3 | S174: > 30 ft | T174: 0.5 | U174: 0.5 | V174: 0.5 | W174: 0.5 | X174: 0.5 | Y174: 0.5 | Z174: 0.5 | AA174: 0.5 | AB174: 0.5
B175: 100-yr | C175: Very High | D175: 0to3 | E175: else | F175: 0.5 | G175: 0.5 | H175: 0.5 | I175: 0.5 | J175: 0.5 | K175: 0.5 | L175: 0.5 | M175: 0.5 | N175: 0.5 | O175: 20 | S175: else | T175: 0.5 | U175: 0.5 | V175: 0.5 | W175: 0.5 | X175: 0.5 | Y175: 0.5 | Z175: 0.5 | AA175: 0.5 | AB175: 0.5
B176: 50-yr | C176: Very Low | D176: 4to9 | E176: > 30 ft | F176: 0.004 | G176: 0.01 | H176: 0.055 | I176: 0.007 | J176: 0.019 | K176: 0.103 | L176: 0.023 | M176: 0.059 | N176: 0.32 | O176: 21 | P176: 50-yr | Q176: Very Low | R176: 4to9 | S176: > 30 ft | T176: 0.055 | U176: 0.141 | V176: 0.5 | W176: 0.103 | X176: 0.265 | Y176: 0.5 | Z176: 0.32 | AA176: 0.5 | AB176: 0.5
B177: 50-yr | C177: Very Low | D177: 4to9 | E177: else | F177: 0.005 | G177: 0.014 | H177: 0.075 | I177: 0.01 | J177: 0.026 | K177: 0.141 | L177: 0.031 | M177: 0.08 | N177: 0.437 | O177: 22 | S177: else | T177: 0.075 | U177: 0.193 | V177: 0.5 | W177: 0.141 | X177: 0.362 | Y177: 0.5 | Z177: 0.437 | AA177: 0.5 | AB177: 0.5
B178: 50-yr | C178: Very Low | D178: 0to3 | E178: > 30 ft | F178: 0.5 | G178: 0.5 | H178: 0.5 | I178: 0.5 | J178: 0.5 | K178: 0.5 | L178: 0.5 | M178: 0.5 | N178: 0.5 | O178: 23 | R178: 0to3 | S178: > 30 ft | T178: 0.5 | U178: 0.5 | V178: 0.5 | W178: 0.5 | X178: 0.5 | Y178: 0.5 | Z178: 0.5 | AA178: 0.5 | AB178: 0.5
B179: 50-yr | C179: Very Low | D179: 0to3 | E179: else | F179: 0.5 | G179: 0.5 | H179: 0.5 | I179: 0.5 | J179: 0.5 | K179: 0.5 | L179: 0.5 | M179: 0.5 | N179: 0.5 | O179: 24 | S179: else | T179: 0.5 | U179: 0.5 | V179: 0.5 | W179: 0.5 | X179: 0.5 | Y179: 0.5 | Z179: 0.5 | AA179: 0.5 | AB179: 0.5
B180: 50-yr | C180: Low | D180: 4to9 | E180: > 30 ft | F180: 0.004 | G180: 0.011 | H180: 0.062 | I180: 0.008 | J180: 0.021 | K180: 0.117 | L180: 0.026 | M180: 0.066 | N180: 0.362 | O180: 25 | Q180: Low | R180: 4to9 | S180: > 30 ft | T180: 0.062 | U180: 0.16 | V180: 0.5 | W180: 0.117 | X180: 0.3 | Y180: 0.5 | Z180: 0.362 | AA180: 0.5 | AB180: 0.5
B181: 50-yr | C181: Low | D181: 4to9 | E181: else | F181: 0.006 | G181: 0.016 | H181: 0.085 | I181: 0.011 | J181: 0.029 | K181: 0.16 | L181: 0.035 | M181: 0.091 | N181: 0.496 | O181: 26 | S181: else | T181: 0.085 | U181: 0.219 | V181: 0.5 | W181: 0.16 | X181: 0.411 | Y181: 0.5 | Z181: 0.496 | AA181: 0.5 | AB181: 0.5
B182: 50-yr | C182: Low | D182: 0to3 | E182: > 30 ft | F182: 0.5 | G182: 0.5 | H182: 0.5 | I182: 0.5 | J182: 0.5 | K182: 0.5 | L182: 0.5 | M182: 0.5 | N182: 0.5 | O182: 27 | R182: 0to3 | S182: > 30 ft | T182: 0.5 | U182: 0.5 | V182: 0.5 | W182: 0.5 | X182: 0.5 | Y182: 0.5 | Z182: 0.5 | AA182: 0.5 | AB182: 0.5
B183: 50-yr | C183: Low | D183: 0to3 | E183: else | F183: 0.5 | G183: 0.5 | H183: 0.5 | I183: 0.5 | J183: 0.5 | K183: 0.5 | L183: 0.5 | M183: 0.5 | N183: 0.5 | O183: 28 | S183: else | T183: 0.5 | U183: 0.5 | V183: 0.5 | W183: 0.5 | X183: 0.5 | Y183: 0.5 | Z183: 0.5 | AA183: 0.5 | AB183: 0.5
B184: 50-yr | C184: Moderate | D184: 4to9 | E184: > 30 ft | F184: 0.005 | G184: 0.013 | H184: 0.071 | I184: 0.009 | J184: 0.024 | K184: 0.133 | L184: 0.029 | M184: 0.075 | N184: 0.411 | O184: 29 | Q184: Mod | R184: 4to9 | S184: > 30 ft | T184: 0.071 | U184: 0.182 | V184: 0.5 | W184: 0.133 | X184: 0.34 | Y184: 0.5 | Z184: 0.411 | AA184: 0.5 | AB184: 0.5
B185: 50-yr | C185: Moderate | D185: 4to9 | E185: else | F185: 0.007 | G185: 0.018 | H185: 0.097 | I185: 0.013 | J185: 0.033 | K185: 0.182 | L185: 0.04 | M185: 0.103 | N185: 0.5 | O185: 30 | S185: else | T185: 0.097 | U185: 0.249 | V185: 0.5 | W185: 0.182 | X185: 0.466 | Y185: 0.5 | Z185: 0.5 | AA185: 0.5 | AB185: 0.5
B186: 50-yr | C186: Moderate | D186: 0to3 | E186: > 30 ft | F186: 0.5 | G186: 0.5 | H186: 0.5 | I186: 0.5 | J186: 0.5 | K186: 0.5 | L186: 0.5 | M186: 0.5 | N186: 0.5 | O186: 31 | R186: 0to3 | S186: > 30 ft | T186: 0.5 | U186: 0.5 | V186: 0.5 | W186: 0.5 | X186: 0.5 | Y186: 0.5 | Z186: 0.5 | AA186: 0.5 | AB186: 0.5
B187: 50-yr | C187: Moderate | D187: 0to3 | E187: else | F187: 0.5 | G187: 0.5 | H187: 0.5 | I187: 0.5 | J187: 0.5 | K187: 0.5 | L187: 0.5 | M187: 0.5 | N187: 0.5 | O187: 32 | S187: else | T187: 0.5 | U187: 0.5 | V187: 0.5 | W187: 0.5 | X187: 0.5 | Y187: 0.5 | Z187: 0.5 | AA187: 0.5 | AB187: 0.5
B188: 50-yr | C188: High | D188: 4to9 | E188: > 30 ft | F188: 0.006 | G188: 0.015 | H188: 0.08 | I188: 0.011 | J188: 0.028 | K188: 0.15 | L188: 0.033 | M188: 0.085 | N188: 0.466 | O188: 33 | Q188: High | R188: 4to9 | S188: > 30 ft | T188: 0.08 | U188: 0.206 | V188: 0.5 | W188: 0.15 | X188: 0.386 | Y188: 0.5 | Z188: 0.466 | AA188: 0.5 | AB188: 0.5
B189: 50-yr | C189: High | D189: 4to9 | E189: else | F189: 0.008 | G189: 0.02 | H189: 0.11 | I189: 0.015 | J189: 0.038 | K189: 0.206 | L189: 0.046 | M189: 0.117 | N189: 0.5 | O189: 34 | S189: else | T189: 0.11 | U189: 0.282 | V189: 0.5 | W189: 0.206 | X189: 0.5 | Y189: 0.5 | Z189: 0.5 | AA189: 0.5 | AB189: 0.5
B190: 50-yr | C190: High | D190: 0to3 | E190: > 30 ft | F190: 0.5 | G190: 0.5 | H190: 0.5 | I190: 0.5 | J190: 0.5 | K190: 0.5 | L190: 0.5 | M190: 0.5 | N190: 0.5 | O190: 35 | R190: 0to3 | S190: > 30 ft | T190: 0.5 | U190: 0.5 | V190: 0.5 | W190: 0.5 | X190: 0.5 | Y190: 0.5 | Z190: 0.5 | AA190: 0.5 | AB190: 0.5
B191: 50-yr | C191: High | D191: 0to3 | E191: else | F191: 0.5 | G191: 0.5 | H191: 0.5 | I191: 0.5 | J191: 0.5 | K191: 0.5 | L191: 0.5 | M191: 0.5 | N191: 0.5 | O191: 36 | S191: else | T191: 0.5 | U191: 0.5 | V191: 0.5 | W191: 0.5 | X191: 0.5 | Y191: 0.5 | Z191: 0.5 | AA191: 0.5 | AB191: 0.5
B192: 50-yr | C192: Very High | D192: 4to9 | E192: > 30 ft | F192: 0.007 | G192: 0.019 | H192: 0.103 | I192: 0.014 | J192: 0.035 | K192: 0.193 | L192: 0.043 | M192: 0.11 | N192: 0.5 | O192: 37 | Q192: Very High | R192: 4to9 | S192: > 30 ft | T192: 0.103 | U192: 0.265 | V192: 0.5 | W192: 0.193 | X192: 0.496 | Y192: 0.5 | Z192: 0.5 | AA192: 0.5 | AB192: 0.5
B193: 50-yr | C193: Very High | D193: 4to9 | E193: else | F193: 0.01 | G193: 0.026 | H193: 0.141 | I193: 0.019 | J193: 0.049 | K193: 0.265 | L193: 0.59 | M193: 0.15 | N193: 0.5 | O193: 38 | S193: else | T193: 0.141 | U193: 0.362 | V193: 0.5 | W193: 0.265 | X193: 0.5 | Y193: 0.5 | Z193: 0.5 | AA193: 0.5 | AB193: 0.5
B194: 50-yr | C194: Very High | D194: 0to3 | E194: > 30 ft | F194: 0.5 | G194: 0.5 | H194: 0.5 | I194: 0.5 | J194: 0.5 | K194: 0.5 | L194: 0.5 | M194: 0.5 | N194: 0.5 | O194: 39 | R194: 0to3 | S194: > 30 ft | T194: 0.5 | U194: 0.5 | V194: 0.5 | W194: 0.5 | X194: 0.5 | Y194: 0.5 | Z194: 0.5 | AA194: 0.5 | AB194: 0.5
B195: 50-yr | C195: Very High | D195: 0to3 | E195: else | F195: 0.5 | G195: 0.5 | H195: 0.5 | I195: 0.5 | J195: 0.5 | K195: 0.5 | L195: 0.5 | M195: 0.5 | N195: 0.5 | O195: 40 | S195: else | T195: 0.5 | U195: 0.5 | V195: 0.5 | W195: 0.5 | X195: 0.5 | Y195: 0.5 | Z195: 0.5 | AA195: 0.5 | AB195: 0.5

Sheet Flood-Bridge Approach
A1: Problem: | C1: Flood
A4: Step 1: | B4: Threat Data Collection
B6: Recurrence Interval | D6: Annual Threat Likelihood
B7: 100 | C7: years | E7: =VLOOKUP(B7,B83:D90,3,FALSE) -> 0.01
B8: 500 | C8: years | E8: =VLOOKUP(B8,B83:D90,3,FALSE) -> 0.002
A13: Step 2: | B13: Asset Data Collection
A14: Site Overview: | C14: Approach | F14: CODE | G14: Item Description | J14: CDOT Link
B15: East | C15: Length: | D15: 20 | E15: (feet) | G15: Default 20 ft
C16: Width: | D16: 38 | E16: (feet) | F16: NBI 51 | G16: Width Curb to Curb | I16: Staff Bridge Major Structure Inventory (link)
C17: Slope Prot: | D17: Riprap | F17: Element 9326/1 | G17: Type of Slope Protection | I17: Staff Bridge Major Structure Inventory (link)
C18: Slope Cond: | D18: State 2 | F18: Element 9325/1 | G18: Slope Protection Condition | I18: Staff Bridge Major Structure Inventory (link)
B19: =IF(B15="East","West",IF(B15="North","South",IF(B15="West","East",IF(B15="South","North","West")))) -> West | C19: Length: | D19: 20 | E19: (feet) | G19: Default 20 ft
C20: Width: | D20: 38 | E20: (feet) | F20: NBI 51 | G20: Width Curb to Curb | I20: Staff Bridge Major Structure Inventory (link)
C21: Slope Prot: | D21: Riprap | F21: Element 9326/1 | G21: Type of Slope Protection | I21: Staff Bridge Major Structure Inventory (link)
C22: Slope Cond: | D22: State 1 | F22: Element 9325/1 | G22: Slope Protection Condition | I22: Staff Bridge Major Structure Inventory (link)
B23: Total: | C23: AADT Veh: | D23: 8200 | E23: (vehicle)
C24: AADT Trck: | D24: 2800 | E24: (truck)
C25: Milepost: | D25: 7
C26: Car User: | D26: C2 | E26: C4
C27: Trck User: | D27: C3 | E27: C5
C28: Occup: | D28: 0
C29: Slope: | D29: Low
C30: Cover: | D30: Shrubs
A32: Step 3: | B32: Owner Consequence
C35: =INDEX(C113:F117,MATCH(C14,B113:B117,1),MATCH(C1,C112:F112,1)) -> 266000 | D35: =B15 -> East
C36: =INDEX(C121:F125,MATCH(C14,B121:B125,1),MATCH(C1,C120:F120,1)) -> 266000 | D36: =B19 -> West
A41: Step 4: | B41: User Consequence
B42: Full Closure: | G42: Dt: | H42: =VLOOKUP(C46,D108:E108,2) -> 189 | I42: mins
B43: Avg Veh: | C43: =0.5*D23 -> 4100 | D43: Veh Cost: | E43: =VLOOKUP(D26,G134:H140,2) -> 0.59 | G43: Veh: | H43: =VLOOKUP(E26,G134:H140,2) -> 10.62
B44: Avg Trck: | C44: =0.5*D24 -> 1400 | D44: Trck Cost: | E44: =VLOOKUP(D27,G134:H140,2) -> 0.96 | G44: Trck: | H44: =VLOOKUP(E27,G134:H140,2) -> 25.31
B45: dFC: | C45: =SUMPRODUCT((B148:B158=C14)*(D148:D158)) -> 2 | G45: O: | H45: =VLOOKUP(D28,G134:H140,2) -> 1.77
B46: C7: | C46: =LOOKUP(2,1/(B108:B108<=D25)/(C108:C108>=D25),D108:D108) -> 146 | D46: VOC.FC: | E46: =(E43*C43+E44*C44)*C45*C46 -> 1098796 | G46: LW.FC: | H46: =(H43*H45*C43+H44*C44)*C45*H42/60 -> 708771.042
D48: Total: | E48: =E46+H46 -> 1807567.042 | G48: Per Approach: | H48: =E48/2 -> 903783.521
A50: Step 5: | B50: Vulnerability Assessment
B52: HC Values: | D52: Hydraulic Capacity: | F52: 50 | G52: years | H52: (based on Exhibit 4.2.3.4?)
B53: 50 | D53: HC: | F53: =IF(F52=100,"100-yr","50-yr") -> 50-yr | G53: HC Index: | H53: =MATCH(F53,C173:C196,0) -> 13
B54: 100 | D54: Slope Prot, | E54: =B15 -> East | F54: =D17 -> Riprap | G54: SP Index: | H54: =MATCH(F54,D173:D196,0) -> 7 | I54: =H53+H54-1 -> 19
D55: Slope Cond, | E55: =B15 -> East | F55: =D18 -> State 2 | G55: SC Index: | H55: =MATCH(F55,E173:E196,0) -> 2 | I55: =I54+H55-1 -> 20
D56: Debris: | F56: =E169 -> Moderate | G56: Deb Index: | H56: =MATCH(F56,F172:J172,0) -> 3
D57: Slope Prot, | E57: =B19 -> West | F57: =D21 -> Riprap | G57: SP Index: | H57: =MATCH(F57,D173:D196,0) -> 7 | I57: =H53+H57-1 -> 19
D58: Slope Cond, | E58: =B19 -> West | F58: =D22 -> State 1 | G58: SC Index: | H58: =MATCH(F58,E173:E196,0) -> 1 | I58: =I57+H58-1 -> 19
D59: 100-year mag, | E59: =B15 -> East | F59: =INDEX(F173:J196,I55,H56) -> 0.2698
D60: 100-year mag, | E60: =B19 -> West | F60: =INDEX(F173:J196,I58,H56) -> 0.148
D61: 500-year mag, | E61: =B15 -> East | F61: =INDEX(P173:T196,I55,H56) -> 0.99
D62: 500-year mag, | E62: =B19 -> West | F62: =INDEX(O110:S133,I58,H56) -> 0
A64: Step 6: | B64: Risk Assessment
B66: Annual Owner Risk: | D66: 100-year | E66: =B15 -> East | F66: =C35*F59*E7 -> 717.668 | H66: Annual User Risk: | J66: 100-year | K66: =B15 -> East | L66: =H48*F59*E7 -> 2438.40794
E67: =B19 -> West | F67: =C36*F60*E7 -> 393.68 | K67: =B19 -> West | L67: =H48*F60*E7 -> 1337.599611
D69: 500-year | E69: =B15 -> East | F69: =C35*F61*E8 -> 526.68 | J69: 500-year | K69: =B15 -> East | L69: =H48*F61*E8 -> 1789.491372
E70: =B19 -> West | F70: =C36*F62*E8 -> 0 | K70: =B19 -> West | L70: =H48*F62*E8 -> 0
B72: Total Owner Risk: | F72: =SUM(F66:F70) -> 1638.028 | H72: Total User Risk: | L72: =SUM(L66:L70) -> 5565.498922
H74: Total Annual Risk: | L74: =F72+L72 -> 7203.526922
A78: Please customize the information from the standard below:
A80: Exhibits: | B80: 3.6
D81: Annual Threat
B82: Recurrence Interval | D82: Likelihood
B83: 1 | C83: year | D83: 1
B84: 2 | C84: years | D84: =1/2 -> 0.5
B85: 5 | C85: years | D85: =1/5 -> 0.2
B86: 10 | C86: years | D86: =1/10 -> 0.1
B87: 25 | C87: years | D87: =1/25 -> 0.04
B88: 50 | C88: years | D88: =1/50 -> 0.02
B89: 100 | C89: years | D89: =1/100 -> 0.01
B90: 500 | C90: years | D90: =1/500 -> 0.002
B92: 3.8
C93: Road
B94: Asset | C94: Type | D94: Units | E94: Unit Cost
B95: Approach | D95: sq ft | E95: 350
B96: Bridge | D96: sq ft | E96: 600
B97: CBC | D97: cu ft | E97: 55
B98: PTCS | D98: sq ft | E98: 550
B99: Roadway | C99: Asphalt | D99: sq yds | E99: 150
B100: Roadway | C100: Concrete | D100: sq yds | E100: 350
B102: Unit Cost: | C102: =INDEX(E95:E100,MATCH(C14,B95:B100,0)) -> 350 | D102: ($ / units)
B105: 3.13 | D105: (miles) | E105: (minutes)
B106: Start | C106: End | D106: Added Travel | E106: Added Travel
B107: Milepost | C107: Milepost | D107: Distance (C7) | E107: Time (Dt)
B108: 1 | C108: 14 | D108: 146 | E108: 189
B110: 3.1
C111: Threat
B112: Asset | C112: Debris | D112: Flood | E112: Scour | F112: Rockfall
B113: Approach | D113: =C127 -> 266000 | G113: =B15 -> East
B114: Bridge | D114: =C127+5000 -> 271000 | E114: =C127+5000 -> 271000 | F114: =IF(D15<100,C127+200000,2500000) -> 466000
B115: Culvert | C115: =C127+5000 -> 271000 | D115: =C127+5000 -> 271000
B116: PTCS | F116: =0.25*500*D16*C102+200000 -> 1862500
B117: Roadway | C117: =C127+5000 -> 271000 | D117: =C127+5000 -> 271000 | F117: =100*D16*C102+200000 -> 1530000
C119: Threat
B120: Asset | C120: Debris | D120: Flood | E120: Scour | F120: Rockfall
B121: Approach | D121: =C128 -> 266000 | G121: =B19 -> West
B122: Bridge | D122: =C128+5000 -> 271000 | E122: =C128+5000 -> 271000 | F122: =IF(D15<100,C128+200000,2500000) -> 466000
B123: Culvert | C123: =C128+5000 -> 271000 | D123: =C128+5000 -> 271000
B124: PTCS | F124: =0.25*500*D20*C102+200000 -> 1862500
B125: Roadway | C125: =C128+5000 -> 271000 | D125: =C128+5000 -> 271000 | F125: =100*D20*C102+200000 -> 1530000
B127: ARC: | C127: =D16*D15*C102 -> 266000 | D127: for the: | E127: =B15 -> East | F127: approach
C128: =D20*D19*C102 -> 266000 | D128: for the: | E128: =B19 -> West | F128: approach
C129: =C127+C128 -> 532000 | D129: total
B131: 3.11
I132: Year
B133: User Cost Terms | G133: Variable | H133: Value ($) | I133: Published
B134: Average Vehicle Occupancy | G134: 0 | H134: 1.77 | I134: 2019
B135: Car Running Cost per Mile | G135: C2 | H135: 0.59 | I135: 2019
B136: Truck Running Cost per Mile | G136: C3 | H136: 0.96 | I136: 2015
B137: Average Value of Time per Adult per Hour | G137: C4 | H137: 10.62 | I137: 2015
B138: Average Value of Freight Driver Cost per Hour | G138: C5 | H138: 25.31 | I138: 2015
B139: Car Running Cost per Mile | G139: C8 | H139: 26.52 | I139: 2015
B140: Truck Running Cost per Mile | G140: C9 | H140: 44.24 | I140: 2015
G142: A: | H142: <= half road width
G143: B: | H143: > half road width
G144: C: | H144: 2 directions
B145: 3.12
D146: Full Closure | E146: Part Closure
B147: Asset | C147: Threat | D147: Days (dFC) | E147: Days (dPC)
B148: Approach | C148: All | D148: 2 | E148: 0
B149: Bridge | C149: Flood | D149: 180 | E149: 0
B150: Bridge | C150: Debris | D150: 2 | E150: 0
B151: Bridge | C151: Rockfall | D151: 4 | E151: 14
B152: Culvert | C152: Flood | D152: 3 | E152: 0
B153: Culvert | C153: Debris | D153: 1 | E153: 0
B154: PTCS | C154: Rockfall | D154: 4 | E154: 14
B155: Road A | C155: Flood | D155: 1 | E155: 0
B156: Road B | C156: Flood | D156: 3 | E156: 0
B157: Road C | C157: Flood | D157: 3 | E157: 0
B158: Roadway | C158: Rockfall | D158: 4 | E158: 14
B160: 4.2.2.8
B161: Site | C161: Landcover
B162: Slopes | C162: Water & Snow | D162: Urban | E162: Shrubs | F162: Trees
B163: Low | C163: Very Low | D163: Low | E163: Moderate | F163: Moderate
B164: Moderate | C164: Very Low | D164: Moderate | E164: High | F164: High
B165: High | C165: Very Low | D165: High | E165: High | F165: Very High
B169: Debris Potential Factor: | E169: =INDEX(C163:F165,MATCH(D29,B163:B165,0),MATCH(D30,C162:F162,0)) -> Moderate
C171: 4.2.3.15 | F171: Debris Potential | P171: Debris Potential
B172: 100-yr | C172: Hydraulic | D172: Slope Prot | E172: Slope Cn | F172: Very Low | G172: Low | H172: Moderate | I172: High | J172: Very High | K172: Index | L172: 500-yr | M172: Hydraulic | N172: Slope Prot | O172: Slope Cn | P172: Very Low | Q172: Low | R172: Moderate | S172: High | T172: Very High
C173: 100-yr | D173: Both | E173: State 1 | F173: 0.0008 | G173: 0.0011 | H173: 0.0036 | I173: 0.0121 | J173: 0.0221 | K173: 1 | M173: 100-yr | N173: Both | O173: State 1 | P173: 0.0221 | Q173: 0.0298 | R173: 0.0992 | S173: 0.3296 | T173: 0.601
C174: 100-yr | D174: Both | E174: State 2 | F174: 0.0015 | G174: 0.002 | H174: 0.0066 | I174: 0.0221 | J174: 0.0403 | K174: 2 | M174: 100-yr | N174: Both | O174: State 2 | P174: 0.0403 | Q174: 0.0544 | R174: 0.1808 | S174: 0.601 | T174: 0.99
C175: 100-yr | D175: Both | E175: State 3 | F175: 0.004 | G175: 0.0054 | H175: 0.0181 | I175: 0.0601 | J175: 0.1096 | K175: 3 | M175: 100-yr | N175: Both | O175: State 3 | P175: 0.1096 | Q175: 0.148 | R175: 0.4919 | S175: 0.99 | T175: 0.99
C176: 100-yr | D176: Wingwalls | E176: State 1 | F176: 0.0009 | G176: 0.0012 | H176: 0.004 | I176: 0.0134 | J176: 0.0244 | K176: 4 | M176: 100-yr | N176: Wingwalls | O176: State 1 | P176: 0.0244 | Q176: 0.033 | R176: 0.1096 | S176: 0.3643 | T176: 0.6643
C177: 100-yr | D177: Wingwalls | E177: State 2 | F177: 0.0016 | G177: 0.0022 | H177: 0.0073 | I177: 0.0244 | J177: 0.0445 | K177: 5 | M177: 100-yr | N177: Wingwalls | O177: State 2 | P177: 0.0445 | Q177: 0.0601 | R177: 0.1998 | S177: 0.6643 | T177: 0.99
C178: 100-yr | D178: Wingwalls | E178: State 3 | F178: 0.0045 | G178: 0.006 | H178: 0.02 | I178: 0.0664 | J178: 0.1211 | K178: 6 | M178: 100-yr | N178: Wingwalls | O178: State 3 | P178: 0.1211 | Q178: 0.1636 | R178: 0.5437 | S178: 0.99 | T178: 0.99
C179: 100-yr | D179: Riprap | E179: State 1 | F179: 0.001 | G179: 0.0013 | H179: 0.0045 | I179: 0.0148 | J179: 0.027 | K179: 7 | M179: 100-yr | N179: Riprap | O179: State 1 | P179: 0.027 | Q179: 0.0364 | R179: 0.1211 | S179: 0.4027 | T179: 0.7342
C180: 100-yr | D180: Riprap | E180: State 2 | F180: 0.0018 | G180: 0.0024 | H180: 0.0081 | I180: 0.027 | J180: 0.0492 | K180: 8 | M180: 100-yr | N180: Riprap | O180: State 2 | P180: 0.0492 | Q180: 0.0664 | R180: 0.2209 | S180: 0.7342 | T180: 0.99
C181: 100-yr | D181: Riprap | E181: State 3 | F181: 0.0049 | G181: 0.0066 | H181: 0.0221 | I181: 0.0734 | J181: 0.1339 | K181: 9 | M181: 100-yr | N181: Riprap | O181: State 3 | P181: 0.1339 | Q181: 0.1808 | R181: 0.601 | S181: 0.99 | T181: 0.99
C182: 100-yr | D182: None | E182: State 1 | F182: 0.0045 | G182: 0.006 | H182: 0.02 | I182: 0.0664 | J182: 0.1211 | K182: 10 | M182: 100-yr | N182: None | O182: State 1 | P182: 0.1211 | Q182: 0.1636 | R182: 0.5437 | S182: 0.99 | T182: 0.99 | Y182: Approach Directions: | AB182: Slope Protection Type: | AE182: Slope Condition:
C183: 100-yr | D183: None | E183: State 2 | F183: 0.0081 | G183: 0.011 | H183: 0.0364 | I183: 0.1211 | J183: 0.2209 | K183: 11 | M183: 100-yr | N183: None | O183: State 2 | P183: 0.2209 | Q183: 0.2982 | R183: 0.99 | S183: 0.99 | T183: 0.99 | Y183: East | AB183: None | AE183: State 1
C184: 100-yr | D184: None | E184: State 3 | F184: 0.0221 | G184: 0.0298 | H184: 0.0992 | I184: 0.3296 | J184: 0.601 | K184: 12 | M184: 100-yr | N184: None | O184: State 3 | P184: 0.601 | Q184: 0.8115 | R184: 0.99 | S184: 0.99 | T184: 0.99 | Y184: West | AB184: Riprap | AE184: State 2
C185: 50-yr | D185: Both | E185: State 1 | F185: 0.027 | G185: 0.0364 | H185: 0.1211 | I185: 0.4027 | J185: 0.7342 | K185: 13 | M185: 50-yr | N185: Both | O185: State 1 | P185: 0.7342 | Q185: 0.99 | R185: 0.99 | S185: 0.99 | T185: 0.99 | Y185: North | AB185: Wingwalls | AE185: State 3
C186: 50-yr | D186: Both | E186: State 2 | F186: 0.0492 | G186: 0.0664 | H186: 0.2209 | I186: 0.7342 | J186: 0.99 | K186: 14 | M186: 50-yr | N186: Both | O186: State 2 | P186: 0.99 | Q186: 0.99 | R186: 0.99 | S186: 0.99 | T186: 0.99 | Y186: South | AB186: Both
C187: 50-yr | D187: Both | E187: State 3 | F187: 0.1339 | G187: 0.1808 | H187: 0.601 | I187: 0.99 | J187: 0.99 | K187: 15 | M187: 50-yr | N187: Both | O187: State 3 | P187: 0.99 | Q187: 0.99 | R187: 0.99 | S187: 0.99 | T187: 0.99
C188: 50-yr | D188: Wingwalls | E188: State 1 | F188: 0.0298 | G188: 0.0403 | H188: 0.1339 | I188: 0.4451 | J188: 0.8115 | K188: 16 | M188: 50-yr | N188: Wingwalls | O188: State 1 | P188: 0.8115 | Q188: 0.99 | R188: 0.99 | S188: 0.99 | T188: 0.99
C189: 50-yr | D189: Wingwalls | E189: State 2 | F189: 0.0544 | G189: 0.0734 | H189: 0.2441 | I189: 0.8115 | J189: 0.99 | K189: 17 | M189: 50-yr | N189: Wingwalls | O189: State 2 | P189: 0.99 | Q189: 0.99 | R189: 0.99 | S189: 0.99 | T189: 0.99
C190: 50-yr | D190: Wingwalls | E190: State 3 | F190: 0.148 | G190: 0.1998 | H190: 0.6643 | I190: 0.99 | J190: 0.99 | K190: 18 | M190: 50-yr | N190: Wingwalls | O190: State 3 | P190: 0.99 | Q190: 0.99 | R190: 0.99 | S190: 0.99 | T190: 0.99
C191: 50-yr | D191: Riprap | E191: State 1 | F191: 0.033 | G191: 0.0445 | H191: 0.148 | I191: 0.4919 | J191: 0.8969 | K191: 19 | M191: 50-yr | N191: Riprap | O191: State 1 | P191: 0.8969 | Q191: 0.99 | R191: 0.99 | S191: 0.99 | T191: 0.99
C192: 50-yr | D192: Riprap | E192: State 2 | F192: 0.0601 | G192: 0.0812 | H192: 0.2698 | I192: 0.8969 | J192: 0.99 | K192: 20 | M192: 50-yr | N192: Riprap | O192: State 2 | P192: 0.99 | Q192: 0.99 | R192: 0.99 | S192: 0.99 | T192: 0.99
C193: 50-yr | D193: Riprap | E193: State 3 | F193: 0.1636 | G193: 0.2209 | H193: 0.7342 | I193: 0.99 | J193: 0.99 | K193: 21 | M193: 50-yr | N193: Riprap | O193: State 3 | P193: 0.99 | Q193: 0.99 | R193: 0.99 | S193: 0.99 | T193: 0.99
C194: 50-yr | D194: None | E194: State 1 | F194: 0.148 | G194: 0.1998 | H194: 0.6643 | I194: 0.99 | J194: 0.99 | K194: 22 | M194: 50-yr | N194: None | O194: State 1 | P194: 0.99 | Q194: 0.99 | R194: 0.99 | S194: 0.99 | T194: 0.99
C195: 50-yr | D195: None | E195: State 2 | F195: 0.2698 | G195: 0.3643 | H195: 0.99 | I195: 0.99 | J195: 0.99 | K195: 23 | M195: 50-yr | N195: None | O195: State 2 | P195: 0.99 | Q195: 0.99 | R195: 0.99 | S195: 0.99 | T195: 0.99
C196: 50-yr | D196: None | E196: State 3 | F196: 0.7342 | G196: 0.99 | H196: 0.99 | I196: 0.99 | J196: 0.99 | K196: 24 | M196: 50-yr | N196: None | O196: State 3 | P196: 0.99 | Q196: 0.99 | R196: 0.99 | S196: 0.99 | T196: 0.99

Sheet Flood-Minor Culvert
A1: Problem: | C1: Flood
A4: Step 1: | B4: Threat Data Collection
B6: Recurrence Interval | D6: Annual Threat Likelihood
B7: =B131 -> 25-year | E7: =IF(D135="yes",D86,0) -> 0.04
B8: =B132 -> 50-year | E8: =IF(D136="yes",D87,0) -> 0.02
B9: =B133 -> 100-year | E9: =IF(D137="yes",D88,0) -> 0.01
A13: Step 2: | B13: Asset Data Collection
A14: Site Overview: | C14: Culvert
B15: East | C15: Type: | D15: CMPE
C16: Diameter: | D16: 60 | E16: (inches)
C17: Length: | D17: 78 | E17: (feet)
C18: Condition: | D18: Fair
B19: Peak Flow: | C19: Design: | D19: 200 | E19: (cfs)
C20: 25-year: | D20: 225 | E20: (cfs)
C21: 50-year: | D21: 300 | E21: (cfs)
C22: 100-year: | D22: 500 | E22: (cfs)
B23: Total: | C23: AADT Veh: | D23: 20928 | E23: (vehicle) | F23: OTIS | G23: Avg. Annual Daily Traffic (all) | I23: CDOT OTIS Data Search Platform
C24: AADT Trck: | D24: 3072 | E24: (truck) | F24: OTIS | G24: Avg. Annual Daily Traffic (trucks) | I24: CDOT OTIS Data Search Platform
C25: Milepost: | D25: 11 | F25: OTIS | G25: CDOT Mile Post | I25: CDOT OTIS Data Search Platform
C26: Car User: | D26: C2 | E26: C4
C27: Trck User: | D27: C3 | E27: C5
C28: Occup: | D28: 0
B29: Site: | C29: Slope: | D29: Low
C30: Cover: | D30: Shrubs
A32: Step 3: | B32: Owner Consequence
C35: =INDEX(C142:F146,MATCH(C14,B142:B146,1),MATCH(C1,C141:F141,1)) -> 249530 | D35: =B15 -> East
A41: Step 4: | B41: User Consequence
B42: Full Closure: | G42: Dt: | H42: =INDEX(E127:E127,MATCH(C46,D127:D127,0)) -> 189 | I42: mins
B43: Avg Veh: | C43: =0.5*D23 -> 10464 | D43: Veh Cost: | E43: =VLOOKUP(D26,G153:H159,2) -> 0.59 | G43: Veh: | H43: =VLOOKUP(E26,G153:H159,2) -> 10.62
B44: Avg Trck: | C44: =0.5*D24 -> 1536 | D44: Trck Cost: | E44: =VLOOKUP(D27,G153:H159,2) -> 0.96 | G44: Trck: | H44: =VLOOKUP(E27,G153:H159,2) -> 25.31
B45: dFC: | C45: =SUMPRODUCT((B167:B177=C14)*(C167:C177=C1)*(D167:D177)) -> 3 | G45: O: | H45: =VLOOKUP(D28,G153:H159,2) -> 1.77
B46: C7: | C46: =LOOKUP(2,1/(B127:B127<=D25)/(C127:C127>=D25),D127:D127) -> 146 | D46: VOC.FC: | E46: =(E43*C43+E44*C44)*C45*C46 -> 3349964.16 | G46: LW.FC: | H46: =(H43*H45*C43+H44*C44)*C45*H42/60 -> 2226156.852
D48: Total: | E48: =E46+H46 -> 5576121.012
A50: Step 5: | B50: Vulnerability Assessment
B52: Qe / Qd | C52: =B131 -> 25-year | D52: =IF(D135="yes",E131,0) -> 1.125
C53: =B132 -> 50-year | D53: =IF(D136="yes",E132,0) -> 1.5
C54: =B133 -> 100-year | D54: =IF(D137="yes",E133,0) -> 2.5
B55: Qe / Qd val | C55: =B131 -> 25-year | D55: =IF(D52<=2,"1to2",IF(D52<=3,"2.1to3",IF(D52<=4,"3.1to4","gt4"))) -> 1to2 | E55: Qe / Qd Ind | F55: =MATCH(D55,B111:B122,0) -> 1
C56: =B132 -> 50-year | D56: =IF(D53<=2,"1to2",IF(D53<=3,"2.1to3",IF(D53<=4,"3.1to4","gt4"))) -> 1to2 | F56: =MATCH(D56,B111:B122,0) -> 1
C57: =B133 -> 100-year | D57: 2.1to3 | F57: =MATCH(D57,B111:B122,0) -> 4
B58: Culvert Condition: | D58: =D18 -> Fair | E58: Cond Ind | F58: =MATCH(D58,C111:C113,0) -> 2
B59: Vulnerable | C59: =B131 -> 25-year | D59: =INDEX(D111:H122,F59,F62) -> 0.12 | E59: Vuln Index | F59: =F55+F58-1 -> 2
C60: =B132 -> 50-year | D60: =INDEX(D111:H122,F60,F62) -> 0.12 | F60: =F56+F58-1 -> 2
C61: =B133 -> 100-year | D61: =INDEX(D111:H122,F61,F62) -> 0.18 | F61: =F57+F58-1 -> 5
E62: Debris Ind | F62: =MATCH(E188,D110:H110,0) -> 3
A64: Step 6: | B64: Risk Assessment
B66: Annual Owner Risk: | D66: =B131 -> 25-year | E66: =C35*D59*E7 -> 1197.744 | G66: Annual User Risk: | I66: =B131 -> 25-year | J66: =E48*D59*E7 -> 26765.38086
D67: =B132 -> 50-year | E67: =C35*D60*E8 -> 598.872 | I67: =B132 -> 50-year | J67: =E48*D60*E8 -> 13382.69043
D68: =B133 -> 100-year | E68: =C35*D61*E9 -> 449.154 | I68: =B133 -> 100-year | J68: =E48*D61*E9 -> 10037.01782
B70: Total Owner Risk: | E70: =SUM(E66:E68) -> 2245.77 | G70: Total User Risk: | J70: =SUM(J66:J68) -> 50185.0891
G72: Total Annual Risk: | J72: =E70+J70 -> 52430.8591
A77: Please customize the information from the standard below:
A79: Exhibits: | B79: 3.6
D80: Annual Threat
B81: Recurrence Interval | D81: Likelihood
B82: 1 | C82: year | D82: 1
B83: 2 | C83: years | D83: =1/2 -> 0.5
B84: 5 | C84: years | D84: =1/5 -> 0.2
B85: 10 | C85: years | D85: =1/10 -> 0.1
B86: 25 | C86: years | D86: =1/25 -> 0.04
B87: 50 | C87: years | D87: =1/50 -> 0.02
B88: 100 | C88: years | D88: =1/100 -> 0.01
B89: 500 | C89: years | D89: =1/500 -> 0.002
B91: 3.8
C92: Road | G92: Pipe | H92: Unit Cost
B93: Asset | C93: Type | D93: Units | E93: Unit Cost | G93: Diam (in) | H93: ($ / lin ft)
B94: Approach | D94: sq ft | E94: 350 | G94: <48 | H94: 2205
B95: Bridge | D95: sq ft | E95: 600 | G95: 48 | H95: 2225
B96: Culvert | D96: lin ft | E96: =IF(D16<48,H94,VLOOKUP(D16,G95:H107,2)) -> 3135 | G96: 54 | H96: 2660
B97: CBC | D97: cu ft | E97: 55 | G97: 60 | H97: 3135
B98: PTCS | D98: sq ft | E98: 550 | G98: 66 | H98: 3660
B99: Roadway | C99: Asphalt | D99: sq yds | E99: 150 | G99: 72 | H99: 4235
B100: Roadway | C100: Concrete | D100: sq yds | E100: 350 | G100: 78 | H100: 4865
G101: 84 | H101: 5550
B102: Unit Cost: | C102: =INDEX(E94:E100,MATCH(C14,B94:B100,0)) -> 3135 | D102: ($ / units) | G102: 90 | H102: 10325
G103: 96 | H103: 11690
G104: 102 | H104: 13160
G105: 108 | H105: 14770
G106: 120 | H106: 18325
G107: 138 | H107: 24695
B109: 4.2.3.16 | D109: Debris Potential
B110: Qe / Qd | C110: Culvert Cnd | D110: Very Low | E110: Low | F110: Moderate | G110: High | H110: Very High | I110: Index | M110: 0-5 poor
B111: 1to2 | C111: Good | D111: 0.05 | E111: 0.06 | F111: 0.08 | G111: 0.13 | H111: 0.3 | I111: 1 | M111: 6-7 fair
B112: 1to2 | C112: Fair | D112: 0.07 | E112: 0.08 | F112: 0.12 | G112: 0.18 | H112: 0.42 | I112: 2 | M112: 8-9 good
B113: 1to2 | C113: Poor | D113: 0.25 | E113: 0.3 | F113: 0.42 | G113: 0.64 | H113: 0.99 | I113: 3
B114: 2.1to3 | C114: Good | D114: 0.08 | E114: 0.09 | F114: 0.13 | G114: 0.2 | H114: 0.47 | I114: 4
B115: 2.1to3 | C115: Fair | D115: 0.1 | E115: 0.13 | F115: 0.18 | G115: 0.27 | H115: 0.64 | I115: 5
B116: 2.1to3 | C116: Poor | D116: 0.38 | E116: 0.47 | F116: 0.64 | G116: 0.99 | H116: 0.99 | I116: 6
B117: 3.1to4 | C117: Good | D117: 0.18 | E117: 0.22 | F117: 0.3 | G117: 0.47 | H117: 0.99 | I117: 7
B118: 3.1to4 | C118: Fair | D118: 0.25 | E118: 0.3 | F118: 0.42 | G118: 0.64 | H118: 0.99 | I118: 8
B119: 3.1to4 | C119: Poor | D119: 0.89 | E119: 0.99 | F119: 0.99 | G119: 0.99 | H119: 0.99 | I119: 9
B120: gt4 | C120: Good | D120: 0.64 | E120: 0.8 | F120: 0.99 | G120: 0.99 | H120: 0.99 | I120: 10
B121: gt4 | C121: Fair | D121: 0.89 | E121: 0.99 | F121: 0.99 | G121: 0.99 | H121: 0.99 | I121: 11
B122: gt4 | C122: Poor | D122: 0.99 | E122: 0.99 | F122: 0.99 | G122: 0.99 | H122: 0.99 | I122: 12
B124: 3.13 | D124: (miles) | E124: (minutes)
B125: Start | C125: End | D125: Added Travel | E125: Added Travel
B126: Milepost | C126: Milepost | D126: Distance (C7) | E126: Time (Dt)
B127: 1 | C127: 14 | D127: 146 | E127: 189
B129: Rainfall | C129: Qevent | D129: Qdesign | G129: Approach Directions: | I129: Culvert Types: | M129: Culvert Conditions:
B130: Event | C130: (cfs) | D130: (cfs) | E130: Qe / Qd | G130: East | I130: Corrugated Metal Pipe | L130: CMP | M130: Good
B131: 25-year | C131: =D20 -> 225 | D131: =D19 -> 200 | E131: =C131/D131 -> 1.125 | G131: West | I131: Corrugated Metal Pipe Ellipse | L131: CMPE | M131: Fair
B132: 50-year | C132: =D21 -> 300 | D132: =D19 -> 200 | E132: =C132/D132 -> 1.5 | G132: North | I132: Reinforced Concrete Box | L132: RCB | M132: Poor
B133: 100-year | C133: =D22 -> 500 | D133: =D19 -> 200 | E133: 2.5 | G133: South | I133: Reinforced Concrete Pipe | L133: RCP
I134: Reinforced Concrete Pipe Ellipse | L134: RCPE
B135: Events | C135: 25-year: | D135: =IF(E131>1,"yes","no") -> yes
B136: Used: | C136: 50-year: | D136: =IF(E132>1,"yes","no") -> yes
C137: 100-year: | D137: yes
B139: 3.1
C140: Threat
B141: Asset | C141: Debris | D141: Flood | E141: Scour | F141: Rockfall
B142: Approach | D142: =C148 -> 244530
B143: Bridge | D143: =C148+5000 -> 249530 | E143: =C148+5000 -> 249530 | F143: =IF(D15<100,C148+200000,2500000) -> 2500000
B144: Culvert | C144: =C148+5000 -> 249530 | D144: =C148+5000 -> 249530
B145: PTCS | F145: =0.25*500*D16*C102+200000 -> 23712500
B146: Roadway | C146: =C148+5000 -> 249530 | D146: =C148+5000 -> 249530 | F146: =100*D16*C102+200000 -> 19010000
B148: ARC: | C148: =C102*D17 -> 244530 | D148: for the: | E148: =B15 -> East | F148: =C14 -> Culvert
B150: 3.11
I151: Year
B152: User Cost Terms | G152: Variable | H152: Value ($) | I152: Published
B153: Average Vehicle Occupancy | G153: 0 | H153: 1.77 | I153: 2019
B154: Car Running Cost per Mile | G154: C2 | H154: 0.59 | I154: 2019
B155: Truck Running Cost per Mile | G155: C3 | H155: 0.96 | I155: 2015
B156: Average Value of Time per Adult per Hour | G156: C4 | H156: 10.62 | I156: 2015
B157: Average Value of Freight Driver Cost per Hour | G157: C5 | H157: 25.31 | I157: 2015
B158: Car Running Cost per Mile | G158: C8 | H158: 26.52 | I158: 2015
B159: Truck Running Cost per Mile | G159: C9 | H159: 44.24 | I159: 2015
G161: A: | H161: <= half road width
G162: B: | H162: > half road width
G163: C: | H163: 2 directions
B164: 3.12
D165: Full Closure | E165: Part Closure
B166: Asset | C166: Threat | D166: Days (dFC) | E166: Days (dPC)
B167: Approach | C167: All | D167: 2 | E167: 0
B168: Bridge | C168: Flood | D168: 180 | E168: 0
B169: Bridge | C169: Debris | D169: 2 | E169: 0
B170: Bridge | C170: Rockfall | D170: 4 | E170: 14
B171: Culvert | C171: Flood | D171: 3 | E171: 0
B172: Culvert | C172: Debris | D172: 1 | E172: 0
B173: PTCS | C173: Rockfall | D173: 4 | E173: 14
B174: Road A | C174: Flood | D174: 1 | E174: 0
B175: Road B | C175: Flood | D175: 3 | E175: 0
B176: Road C | C176: Flood | D176: 3 | E176: 0
B177: Roadway | C177: Rockfall | D177: 4 | E177: 14
B179: 4.2.2.8
B180: Site | C180: Landcover
B181: Slopes | C181: Water & Snow | D181: Urban | E181: Shrubs | F181: Trees
B182: Low | C182: Very Low | D182: Low | E182: Moderate | F182: Moderate
B183: Moderate | C183: Very Low | D183: Moderate | E183: High | F183: High
B184: High | C184: Very Low | D184: High | E184: High | F184: Very High
B188: Debris Potential Factor: | E188: =INDEX(C182:F184,MATCH(D29,B182:B184,0),MATCH(D30,C181:F181,0)) -> Moderate
B190: =_xlfn.CONCAT(C14,C1) -> CulvertFlood

Sheet Flood-Major Culvert
A1: Problem: | C1: Flood
A4: Step 1: | B4: Threat Data Collection
B6: Recurrence Interval | D6: Annual Threat Likelihood
B7: 100 | E7: =VLOOKUP(B7,B85:D92,3) -> 0.01
B8: 500 | E8: =VLOOKUP(B8,B85:D92,3) -> 0.002
A13: Step 2: | B13: Asset Data Collect
A14: Site Overview: | C14: CBC | F14: CODE | G14: Item Description | J14: CDOT Link
B15: East | C15: Type: | D15: CBC | F15: NBI 120A | G15: CDOT Structure Type | J15: Staff Bridge Major Structure Inventory (link)
C16: Width: | D16: 25 | E16: (feet) | F16: NBI 48 | G16: Max Spans (round to integer) | J16: Staff Bridge Major Structure Inventory (link)
C17: Length: | D17: 45 | E17: (feet) | F17: NBI 49 | G17: Structure Length | J17: Staff Bridge Major Structure Inventory (link)
C18: Height: | D18: 15 | E18: (feet)
C19: # of Cells: | D19: 4 | F19: NBI 45 | G19: Maint Spans Unit | J19: Staff Bridge Major Structure Inventory (link)
C20: Culv Cond: | D20: 7 | F20: NBI 62 | G20: Culvert | J20: Staff Bridge Major Structure Inventory (link)
C21: Ch&Pr Cnd: | D21: 7 | F21: NBI 61 | G21: Channel & Chnl. Protection Condition | J21: Staff Bridge Major Structure Inventory (link)
B22: Peak Flow: | C22: Design: | D22: 225 | E22: (cfs)
C23: 25-year: | D23: 225 | E23: (cfs)
C24: 50-year: | D24: 300 | E24: (cfs)
C25: 100-year: | D25: 500 | E25: (cfs)
B26: Total: | C26: AADT Veh: | D26: 10220 | E26: (vehicle) | F26: OTIS | G26: Avg. Annual Daily Traffic (all) | I26: CDOT OTIS Data Search Platform
C27: AADT Trck: | D27: 3780 | E27: (truck) | F27: OTIS | G27: Avg. Annual Daily Traffic (trucks) | I27: CDOT OTIS Data Search Platform
C28: Milepost: | D28: 9 | F28: NBI 11 | G28: CDOT Mile Post | I28: Staff Bridge Major Structure Inventory (link)
C29: Car User: | D29: C2 | E29: C4
C30: Trck User: | D30: C3 | E30: C5
C31: Occup: | D31: 0
C32: Slope: | D32: 0.0225
C33: Slope Val: | D33: =IF(D32<0.09,"Low",IF(D32<0.17,"Moderate","High")) -> Low
C34: Cover: | D34: Shrubs
A36: Step 3: | B36: Owner Consequence
C39: =INDEX(C154:F158,MATCH(C14,B154:B158,1),MATCH(C1,C153:F153,1)) -> 3717500 | D39: =B15 -> East
A45: Step 4: | B45: User Consequence
B46: Full Closure: | G46: Dt: | H46: =INDEX(E149:E149,MATCH(C50,D149:D149,0)) -> 189 | I46: mins
B47: Avg Veh: | C47: =0.5*D26 -> 5110 | D47: Veh Cost: | E47: =VLOOKUP(D29,G165:H171,2) -> 0.59 | G47: Veh: | H47: =VLOOKUP(E29,G165:H171,2) -> 10.62
B48: Avg Trck: | C48: =0.5*D27 -> 1890 | D48: Trck Cost: | E48: =VLOOKUP(D30,G165:H171,2) -> 0.96 | G48: Trck: | H48: =VLOOKUP(E30,G165:H171,2) -> 25.31
B49: dFC: | C49: =SUMPRODUCT((B179:B190=C14)*(C179:C190=C1)*(D179:D190)) -> 3 | G49: O: | H49: =VLOOKUP(D28,G165:H171,2) -> 1.77
B50: C7: | C50: =LOOKUP(2,1/(B149:B149<=D28)/(C149:C149>=D28),D149:D149) -> 146 | D50: VOC.FC: | E50: =(E47*C47+E48*C48)*C49*C50 -> 2115233.4 | G50: LW.FC: | H50: =(H47*H49*C47+H48*C48)*C49*H46/60 -> 1359766.302
D52: Total: | E52: =E50+H50 -> 3474999.702
A54: Step 5: | B54: Vulnerability Assessment
B56: HC Values: | D56: Flood Event Magnitudes: | F56: 100-yr | G56: FEM Index: | H56: =MATCH(F56,B109:B144,0) -> 1
B57: 50 | F57: 500-yr | H57: =MATCH(F57,B109:B144,0) -> 19
B58: 100 | D58: Culvert Hydraulic Cap: | F58: 50 | G58: CHC Index: | H58: =MATCH(F59,C109:C126,0) -> 10 | I58: =H56+H58-1 -> 10
D59: CHC Value: | F59: =IF(F58=50,"50-yr","100-yr") -> 50-yr | I59: =H57+H58-1 -> 28
D60: Culvert Condition: | F60: =D20 -> 7 | G60: CC Index: | H60: =MATCH(F61,D109:D117,0) -> 1 | I60: =I58+H60-1 -> 10
D61: CC Value: | F61: =IF(F60>6,"7to9",IF(F60>3,"4to6","0to3")) -> 7to9 | I61: =I59+H60-1 -> 28
D62: Ch & Protection Cond: | F62: =D21 -> 7 | G62: CPC Index: | H62: =MATCH(F63,E109:E112,0) -> 1 | I62: =I60+H62-1 -> 10
D63: CPC Value: | F63: =IF(F62>6,"7to9",IF(F62>3,"4to6","0to3")) -> 7to9 | I63: =I61+H62-1 -> 28
D64: Vulnerable | E64: =F56 -> 100-yr | F64: =INDEX(F109:J144,I62,H65) -> 0.12
E65: =F57 -> 500-yr | F65: =INDEX(F109:J144,I63,H65) -> 0.99 | G65: Debris Ind | H65: =MATCH(E201,F108:J108,0) -> 3
A67: Step 6: | B67: Risk Assessment
B69: Annual Owner Risk: | D69: =F56 -> 100-yr | E69: =C39*F64*E7 -> 4461 | G69: Annual User Risk: | I69: =F56 -> 100-yr | J69: =E52*F64*E7 -> 4169.999643
D70: =F57 -> 500-yr | E70: =C39*F65*E8 -> 7360.65 | I70: =F57 -> 500-yr | J70: =E52*F65*E8 -> 6880.499411
B72: Total Owner Risk: | E72: =SUM(E69:E70) -> 11821.65 | G72: Total User Risk: | J72: =SUM(J69:J70) -> 11050.49905
G74: Total Annual Risk: | J74: =E72+J72 -> 22872.14905
A80: Please customize the information from the standard below:
A82: Exhibits: | B82: 3.6
D83: Annual Threat
B84: Recurrence Interval | D84: Likelihood
B85: 1 | C85: year | D85: 1
B86: 2 | C86: years | D86: =1/2 -> 0.5
B87: 5 | C87: years | D87: =1/5 -> 0.2
B88: 10 | C88: years | D88: =1/10 -> 0.1
B89: 25 | C89: years | D89: =1/25 -> 0.04
B90: 50 | C90: years | D90: =1/50 -> 0.02
B91: 100 | C91: years | D91: =1/100 -> 0.01
B92: 500 | C92: years | D92: =1/500 -> 0.002
B94: 3.8
C95: Road
B96: Asset | C96: Type | D96: Units | E96: Unit Cost
B97: Approach | D97: sq ft | E97: 350
B98: Bridge | D98: sq ft | E98: 600
B99: Culvert | D99: lin ft | E99: =IF(D17<48,I85,VLOOKUP(D16,H86:I98,2)) -> 0
B100: CBC | D100: cu ft | E100: 55
B101: PTCS | D101: sq ft | E101: 550
B102: Roadway | C102: Asphalt | D102: sq yds | E102: 150
B103: Roadway | C103: Concrete | D103: sq yds | E103: 350
B105: Unit Cost: | C105: =INDEX(E97:E103,MATCH(D15,B97:B103,0)) -> 55 | D105: ($ / units)
B107: 4.2.5.15 | F107: Debris Potential
B108: Flood Event | C108: Hydr Cap | D108: Culv Cond | E108: Chan&Prot | F108: Very Low | G108: Low | H108: Moderate | I108: High | J108: Very High | K108: Index
B109: 100-yr | C109: 100-yr | D109: 7to9 | E109: 7to9 | F109: 0.001 | G109: 0.001 | H109: 0.004 | I109: 0.01 | J109: 0.02 | K109: 1
B110: 100-yr | C110: 100-yr | D110: 7to9 | E110: 4to6 | F110: 0.001 | G110: 0.001 | H110: 0.004 | I110: 0.01 | J110: 0.03 | K110: 2
B111: 100-yr | C111: 100-yr | D111: 7to9 | E111: 0to3 | F111: 0.002 | G111: 0.002 | H111: 0.007 | I111: 0.02 | J111: 0.04 | K111: 3
B112: 100-yr | C112: 100-yr | D112: 4to6 | E112: 7to9 | F112: 0.001 | G112: 0.002 | H112: 0.005 | I112: 0.02 | J112: 0.03 | K112: 4
B113: 100-yr | C113: 100-yr | D113: 4to6 | E113: 4to6 | F113: 0.001 | G113: 0.002 | H113: 0.007 | I113: 0.02 | J113: 0.04 | K113: 5
B114: 100-yr | C114: 100-yr | D114: 4to6 | E114: 0to3 | F114: 0.002 | G114: 0.003 | H114: 0.01 | I114: 0.04 | J114: 0.07 | K114: 6
B115: 100-yr | C115: 100-yr | D115: 0to3 | E115: 7to9 | F115: 0.003 | G115: 0.004 | H115: 0.01 | I115: 0.05 | J115: 0.09 | K115: 7
B116: 100-yr | C116: 100-yr | D116: 0to3 | E116: 4to6 | F116: 0.004 | G116: 0.005 | H116: 0.02 | I116: 0.06 | J116: 0.11 | K116: 8
B117: 100-yr | C117: 100-yr | D117: 0to3 | E117: 0to3 | F117: 0.007 | G117: 0.009 | H117: 0.03 | I117: 0.1 | J117: 0.18 | K117: 9
B118: 100-yr | C118: 50-yr | D118: 7to9 | E118: 7to9 | F118: 0.03 | G118: 0.04 | H118: 0.12 | I118: 0.4 | J118: 0.73 | K118: 10
B119: 100-yr | C119: 50-yr | D119: 7to9 | E119: 4to6 | F119: 0.03 | G119: 0.04 | H119: 0.15 | I119: 0.49 | J119: 0.9 | K119: 11
B120: 100-yr | C120: 50-yr | D120: 7to9 | E120: 0to3 | F120: 0.05 | G120: 0.07 | H120: 0.24 | I120: 0.81 | J120: 0.99 | K120: 12
B121: 100-yr | C121: 50-yr | D121: 4to6 | E121: 7to9 | F121: 0.04 | G121: 0.05 | H121: 0.18 | I121: 0.6 | J121: 0.99 | K121: 13
B122: 100-yr | C122: 50-yr | D122: 4to6 | E122: 4to6 | F122: 0.05 | G122: 0.07 | H122: 0.22 | I122: 0.73 | J122: 0.99 | K122: 14
B123: 100-yr | C123: 50-yr | D123: 4to6 | E123: 0to3 | F123: 0.08 | G123: 0.11 | H123: 0.36 | I123: 0.99 | J123: 0.99 | K123: 15
B124: 100-yr | C124: 50-yr | D124: 0to3 | E124: 7to9 | F124: 0.11 | G124: 0.15 | H124: 0.49 | I124: 0.99 | J124: 0.99 | K124: 16
B125: 100-yr | C125: 50-yr | D125: 0to3 | E125: 4to6 | F125: 0.13 | G125: 0.18 | H125: 0.6 | I125: 0.99 | J125: 0.99 | K125: 17
B126: 100-yr | C126: 50-yr | D126: 0to3 | E126: 0to3 | F126: 0.22 | G126: 0.3 | H126: 0.99 | I126: 0.99 | J126: 0.99 | K126: 18
B127: 500-yr | C127: 100-yr | D127: 7to9 | E127: 7to9 | F127: 0.02 | G127: 0.03 | H127: 0.1 | I127: 0.33 | J127: 0.6 | K127: 19
B128: 500-yr | C128: 100-yr | D128: 7to9 | E128: 4to6 | F128: 0.03 | G128: 0.04 | H128: 0.12 | I128: 0.4 | J128: 0.73 | K128: 20
B129: 500-yr | C129: 100-yr | D129: 7to9 | E129: 0to3 | F129: 0.04 | G129: 0.06 | H129: 0.2 | I129: 0.66 | J129: 0.99 | K129: 21
B130: 500-yr | C130: 100-yr | D130: 4to6 | E130: 7to9 | F130: 0.03 | G130: 0.04 | H130: 0.15 | I130: 0.49 | J130: 0.9 | K130: 22
B131: 500-yr | C131: 100-yr | D131: 4to6 | E131: 4to6 | F131: 0.04 | G131: 0.05 | H131: 0.18 | I131: 0.6 | J131: 0.99 | K131: 23
B132: 500-yr | C132: 100-yr | D132: 4to6 | E132: 0to3 | F132: 0.07 | G132: 0.09 | H132: 0.3 | I132: 0.99 | J132: 0.99 | K132: 24
B133: 500-yr | C133: 100-yr | D133: 0to3 | E133: 7to9 | F133: 0.09 | G133: 0.12 | H133: 0.4 | I133: 0.99 | J133: 0.99 | K133: 25
B134: 500-yr | C134: 100-yr | D134: 0to3 | E134: 4to6 | F134: 0.11 | G134: 0.15 | H134: 0.49 | I134: 0.99 | J134: 0.99 | K134: 26
B135: 500-yr | C135: 100-yr | D135: 0to3 | E135: 0to3 | F135: 0.18 | G135: 0.24 | H135: 0.81 | I135: 0.99 | J135: 0.99 | K135: 27
B136: 500-yr | C136: 50-yr | D136: 7to9 | E136: 7to9 | F136: 0.73 | G136: 0.99 | H136: 0.99 | I136: 0.99 | J136: 0.99 | K136: 28
B137: 500-yr | C137: 50-yr | D137: 7to9 | E137: 4to6 | F137: 0.9 | G137: 0.99 | H137: 0.99 | I137: 0.99 | J137: 0.99 | K137: 29
B138: 500-yr | C138: 50-yr | D138: 7to9 | E138: 0to3 | F138: 0.99 | G138: 0.99 | H138: 0.99 | I138: 0.99 | J138: 0.99 | K138: 30
B139: 500-yr | C139: 50-yr | D139: 4to6 | E139: 7to9 | F139: 0.99 | G139: 0.99 | H139: 0.99 | I139: 0.99 | J139: 0.99 | K139: 31
B140: 500-yr | C140: 50-yr | D140: 4to6 | E140: 4to6 | F140: 0.99 | G140: 0.99 | H140: 0.99 | I140: 0.99 | J140: 0.99 | K140: 32
B141: 500-yr | C141: 50-yr | D141: 4to6 | E141: 0to3 | F141: 0.99 | G141: 0.99 | H141: 0.99 | I141: 0.99 | J141: 0.99 | K141: 33
B142: 500-yr | C142: 50-yr | D142: 0to3 | E142: 7to9 | F142: 0.99 | G142: 0.99 | H142: 0.99 | I142: 0.99 | J142: 0.99 | K142: 34
B143: 500-yr | C143: 50-yr | D143: 0to3 | E143: 4to6 | F143: 0.99 | G143: 0.99 | H143: 0.99 | I143: 0.99 | J143: 0.99 | K143: 35
B144: 500-yr | C144: 50-yr | D144: 0to3 | E144: 0to3 | F144: 0.99 | G144: 0.99 | H144: 0.99 | I144: 0.99 | J144: 0.99 | K144: 36
B146: 3.13 | D146: (miles) | E146: (minutes)
B147: Start | C147: End | D147: Added Travel | E147: Added Travel
B148: Milepost | C148: Milepost | D148: Distance (C7) | E148: Time (Dt)
B149: 1 | C149: 14 | D149: 146 | E149: 189
B151: 3.1
C152: Threat | G152: =B15 -> East
B153: Asset | C153: Debris | D153: Flood | E153: Scour | F153: Rockfall
B154: Approach | D154: =C160 -> 3712500
B155: Bridge | D155: =C160+5000 -> 3717500 | E155: =C160+5000 -> 3717500 | F155: =IF(D15<100,C160+200000,2500000) -> 2500000
B156: Culvert | C156: =C160+5000 -> 3717500 | D156: =C160+5000 -> 3717500
B157: PTCS | F157: =0.25*500*D16*C105+200000 -> 371875
B158: Roadway | C158: =C160+5000 -> 3717500 | D158: =C160+5000 -> 3717500 | F158: =100*D16*C105+200000 -> 337500
B160: ARC: | C160: =D17*D16*D18*C105*D19 -> 3712500 | D160: for the: | E160: =B15 -> East | F160: =C14 -> CBC
B162: 3.11
I163: Year
B164: User Cost Terms | G164: Variable | H164: Value ($) | I164: Published
B165: Average Vehicle Occupancy | G165: 0 | H165: 1.77 | I165: 2019
B166: Car Running Cost per Mile | G166: C2 | H166: 0.59 | I166: 2019
B167: Truck Running Cost per Mile | G167: C3 | H167: 0.96 | I167: 2015
B168: Average Value of Time per Adult per Hour | G168: C4 | H168: 10.62 | I168: 2015
B169: Average Value of Freight Driver Cost per Hour | G169: C5 | H169: 25.31 | I169: 2015
B170: Car Running Cost per Mile | G170: C8 | H170: 26.52 | I170: 2015
B171: Truck Running Cost per Mile | G171: C9 | H171: 44.24 | I171: 2015
G173: A: | H173: <= half road width
G174: B: | H174: > half road width
G175: C: | H175: 2 directions
B176: 3.12
D177: Full Closure | E177: Part Closure
B178: Asset | C178: Threat | D178: Days (dFC) | E178: Days (dPC)
B179: Approach | C179: All | D179: 2 | E179: 0
B180: Bridge | C180: Flood | D180: 180 | E180: 0
B181: Bridge | C181: Debris | D181: 2 | E181: 0 | J181: Approach Directions: | L181: Culvert Types:
B182: Bridge | C182: Rockfall | D182: 4 | E182: 14 | J182: East | L182: Corrugated Metal Pipe | O182: CMP
B183: CBC | C183: Flood | D183: 3 | E183: 0 | J183: West | L183: Corrugated Metal Pipe Ellipse | O183: CMPE
B184: Culvert | C184: Flood | D184: 3 | E184: 0 | J184: North | L184: Concrete Box Culvert | O184: CBC
B185: Culvert | C185: Debris | D185: 1 | E185: 0 | J185: South | L185: Reinforced Concrete Box | O185: RCB
B186: PTCS | C186: Rockfall | D186: 4 | E186: 14 | L186: Reinforced Concrete Pipe | O186: RCP
B187: Road A | C187: Flood | D187: 1 | E187: 0 | L187: Reinforced Concrete Pipe Ellipse | O187: RCPE
B188: Road B | C188: Flood | D188: 3 | E188: 0
B189: Road C | C189: Flood | D189: 3 | E189: 0
B190: Roadway | C190: Rockfall | D190: 4 | E190: 14
B192: 4.2.2.8
B193: Site | C193: Landcover
B194: Slopes | C194: Water & Snow | D194: Urban | E194: Shrubs | F194: Trees
B195: Low | C195: Very Low | D195: Low | E195: Moderate | F195: Moderate
B196: Moderate | C196: Very Low | D196: Moderate | E196: High | F196: High
B197: High | C197: Very Low | D197: High | E197: High | F197: Very High
B201: Debris Potential Factor: | E201: =INDEX(C195:F197,MATCH(D33,B195:B197,0),MATCH(D34,C194:F194,0)) -> Moderate
B203: CulvertFlood

Sheet Scour-Bridge
A1: Problem: | C1: Scour
A4: Step 1: | B4: Threat Data Collection
B7: See Vulnerability Assessment
A14: Step 2: | B14: Asset Data Collect
A15: Site Overview: | C15: Bridge
B16: East | C16: Type: | D16: 4 | E16: (lanes) | F16: CODE | G16: Item Description | J16: CDOT Link
C17: Width: | D17: 42 | E17: (feet) | F17: NBI 52 | G17: Bridge Width | I17: Staff Bridge Major Structure Inventory (link)
C18: Length: | D18: 83 | E18: (feet) | F18: NBI 49 | G18: Bridge Length (all spans) | I18: Staff Bridge Major Structure Inventory (link)
C19: Class: | D19: 1 | F19: NBI 26 | G19: Functional Classification | I19: Staff Bridge Major Structure Inventory (link)
C20: Water Adq: | D20: 8 | F20: NBI 71 | G20: Waterway Adequacy | I20: Staff Bridge Major Structure Inventory (link)
C21: Ch Prot: | D21: 8 | F21: NBI 61 | G21: Channel Protection | I21: Staff Bridge Major Structure Inventory (link)
C22: Sub Cond: | D22: 7 | F22: NBI 60 | G22: Substructure Condition | I22: Staff Bridge Major Structure Inventory (link)
B23: Road: | C23: Width: | D23: 37 | E23: (feet) | F23: NBI 51 | G23: Width Curb to Curb | I23: Staff Bridge Major Structure Inventory (link)
B24: Total: | C24: AADT Veh: | D24: 8200 | E24: (vehicle) | F24: OTIS | G24: Avg. Annual Daily Traffic (all) | I24: CDOT OTIS Data Search Platform
C25: AADT Trck: | D25: 2800 | E25: (truck) | F25: OTIS | G25: Avg. Annual Daily Traffic (trucks) | I25: CDOT OTIS Data Search Platform
C26: Milepost: | D26: 7 | F26: OTIS | G26: CDOT Mile Post | I26: CDOT OTIS Data Search Platform
C27: Car User: | D27: C2 | E27: C4
C28: Trck User: | D28: C3 | E28: C5
A30: Step 3: | B30: Owner Consequence
B33: =INDEX(C114:F118,MATCH(C15,B114:B118,1),MATCH(C1,C113:F113,1)) -> 2096600 | C33: =B16 -> East
A39: Step 4: | B39: User Consequence
B40: Full Closure: | G40: Dt: | H40: =INDEX(E156,MATCH(C44,D156,0)) -> 189 | I40: mins
B41: Avg Veh: | C41: =0.5*D24 -> 4100 | D41: Veh Cost: | E41: =VLOOKUP(D27,G125:H131,2) -> 0.59 | G41: Veh: | H41: =VLOOKUP(E27,G125:H131,2) -> 10.62
B42: Avg Trck: | C42: =0.5*D25 -> 1400 | D42: Trck Cost: | E42: =VLOOKUP(D28,G125:H131,2) -> 0.96 | G42: Trck: | H42: =VLOOKUP(E28,G125:H131,2) -> 25.31
B43: dFC: | C43: =SUMPRODUCT((B140:B151=C15)*(C140:C151=C1)*(D140:D151)) -> 180 | G43: O: | H43: =VLOOKUP(D26,G125:H131,2) -> 1.77
B44: C7: | C44: =LOOKUP(2,1/(B156<=D26)/(C156>=D26),D156) -> 146 | D44: VOC.FC: | E44: =(E41*C41+E42*C42)*C43*C44 -> 98891640 | G44: LW.FC: | H44: =(H41*H43*C41+H42*C42)*C43*H40/60 -> 63789393.78
D46: Total: | E46: =E44+H44 -> 162681033.8
A48: Step 5: | B48: Vulnerability Assessment
B50: Functional Classification: | D50: =D19 -> 1 | F50: Overtopping Frequency: | H50: =INDEX(F161:P179,MATCH(D50,E161:E179,0),MATCH(D53,F160:P160,0)) -> S
B51: Substructure Condition: | D51: =D22 -> 7 | F51: Annual Probability: | H51: =INDEX(U161:U166,MATCH(H50,S161:S166,0)) -> 0.02
B52: Channel Protection: | D52: =D21 -> 8 | F52: Return Period: | H52: =INDEX(V161:V166,MATCH(H50,S161:S166,0)) -> 11to100
B53: Water Adequacy: | D53: =D20 -> 8 | F53: Scour Vulnerability: | H53: =INDEX(C184:M194,MATCH(D52,B184:B194,0),MATCH(D51,C183:M183,0)) -> 7
B54: Culvert Condition: | D54: =D21 -> 8 | F54: Probability of Failure: | H54: =INDEX(C199:F208,MATCH(H53,B199:B208,0),MATCH(H50,C198:F198,0)) -> 0.00025
A56: Step 6: | B56: Risk Assessment
B58: Annual Owner Risk: | D58: =B33*H54 -> 524.15 | F58: Annual User Risk: | H58: =E46*H54 -> 40670.25844
F60: Total Annual Risk: | H60: =D58+H58 -> 41194.40845
A76: Exhibits: | B76: 3.6
D77: Annual Threat | H77: Pipe | I77: Unit Cost
B78: Recurrence Interval | D78: Likelihood | H78: Diam (in) | I78: ($ / lin ft)
B79: 1 | C79: year | D79: 1 | H79: <48 | I79: 2205
B80: 2 | C80: years | D80: =1/2 -> 0.5 | H80: 48 | I80: 2225
B81: 5 | C81: years | D81: =1/5 -> 0.2 | H81: 54 | I81: 2660
B82: 10 | C82: years | D82: =1/10 -> 0.1 | H82: 60 | I82: 3135
B83: 25 | C83: years | D83: =1/25 -> 0.04 | H83: 66 | I83: 3660
B84: 50 | C84: years | D84: =1/50 -> 0.02 | H84: 72 | I84: 4235
B85: 100 | C85: years | D85: =1/100 -> 0.01 | H85: 78 | I85: 4865
B86: 500 | C86: years | D86: =1/500 -> 0.002 | H86: 84 | I86: 5550
H87: 90 | I87: 10325
H88: 96 | I88: 11690
B89: Approach Directions: | D89: Culvert Types: | H89: 102 | I89: 13160
B90: East | D90: Corrugated Metal Pipe | G90: CMP | H90: 108 | I90: 14770
B91: West | D91: Corrugated Metal Pipe Ellipse | G91: CMPE | H91: 120 | I91: 18325
B92: North | D92: Concrete Box Culvert | G92: CBC | H92: 138 | I92: 24695
B93: South | D93: Reinforced Concrete Box | G93: RCB
D94: Reinforced Concrete Pipe | G94: RCP
D95: Reinforced Concrete Pipe Ellipse | G95: RCPE
B97: 3.8
C98: Road
B99: Asset | C99: Type | D99: Units | E99: Unit Cost
B100: Approach | D100: sq ft | E100: 350
B101: Bridge | D101: sq ft | E101: 600
B102: Culvert | D102: lin ft | E102: =IF(D17<48,I79,VLOOKUP(D17,H80:I92,2)) -> 2205
B103: CBC | D103: cu ft | E103: 55
B104: PTCS | D104: sq ft | E104: 550
B105: Roadway | C105: Asphalt | D105: sq yds | E105: 150
B106: Roadway | C106: Concrete | D106: sq yds | E106: 350
B108: Unit Cost: | C108: =INDEX(E100:E106,MATCH(C15,B100:B106,0)) -> 600 | D108: ($ / units)
B111: 3.1
C112: Threat | G112: =B16 -> East
B113: Asset | C113: Debris | D113: Flood | E113: Scour | F113: Rockfall
B114: Approach | D114: =C120 -> 2091600
B115: Bridge | D115: =C120+5000 -> 2096600 | E115: =C120+5000 -> 2096600 | F115: =IF(D16<100,C120+200000,2500000) -> 2291600
B116: Culvert | C116: =C120+5000 -> 2096600 | D116: =C120+5000 -> 2096600
B117: PTCS | F117: =0.25*500*D17*C108+200000 -> 3350000
B118: Roadway | C118: =C120+5000 -> 2096600 | D118: =C120+5000 -> 2096600 | F118: =100*D17*C108+200000 -> 2720000
B120: ARC: | C120: =D18*D17*D19*C108 -> 2091600 | D120: for the: | E120: =B16 -> East | F120: =C15 -> Bridge
B122: 3.11
I123: Year
B124: User Cost Terms | G124: Variable | H124: Value ($) | I124: Published
B125: Average Vehicle Occupancy | G125: 0 | H125: 1.77 | I125: 2019
B126: Car Running Cost per Mile | G126: C2 | H126: 0.59 | I126: 2019
B127: Truck Running Cost per Mile | G127: C3 | H127: 0.96 | I127: 2015
B128: Average Value of Time per Adult per Hour | G128: C4 | H128: 10.62 | I128: 2015
B129: Average Value of Freight Driver Cost per Hour | G129: C5 | H129: 25.31 | I129: 2015
B130: Car Running Cost per Mile | G130: C8 | H130: 26.52 | I130: 2015
B131: Truck Running Cost per Mile | G131: C9 | H131: 44.24 | I131: 2015
G133: A: | H133: <= half road width
G134: B: | H134: > half road width
G135: C: | H135: 2 directions
B137: 3.12
D138: Full Closure | E138: Part Closure
B139: Asset | C139: Threat | D139: Days (dFC) | E139: Days (dPC)
B140: Approach | C140: All | D140: 2 | E140: 0
B141: Bridge | C141: Flood | D141: 180 | E141: 0
B142: Bridge | C142: Scour | D142: 180 | E142: 0
B143: Bridge | C143: Debris | D143: 2 | E143: 0
B144: Bridge | C144: Rockfall | D144: 4 | E144: 14
B145: Culvert | C145: Flood | D145: 3 | E145: 0
B146: Culvert | C146: Rockfall | D146: 3 | E146: 0
B147: PTCS | C147: Rockfall | D147: 4 | E147: 14
B148: Road A | C148: Flood | D148: 1 | E148: 0
B149: Road B | C149: Flood | D149: 3 | E149: 0
B150: Road C | C150: Flood | D150: 3 | E150: 0
B151: Roadway | C151: Rockfall | D151: 4 | E151: 14
B153: 3.13 | D153: (miles) | E153: (minutes)
B154: Start | C154: End | D154: Added Travel | E154: Added Travel
B155: Milepost | C155: Milepost | D155: Distance (C7) | E155: Time (Dt)
B156: 1 | C156: 14 | D156: 146 | E156: 189
E158: 4.2.6.12
B159: Functional | F159: Waterway Adequacy | U159: Annual | V159: Return
A160: Asset | B160: Classification | E160: Asset | F160: 0 | G160: 1 | H160: 2 | I160: 3 | J160: 4 | K160: 5 | L160: 6 | M160: 7 | N160: 8 | O160: 9 | P160: N | R160: Waterway Adequacy | T160: Description | U160: Probability | V160: Period
A161: 01 | B161: Principal Arterial | E161: 1 | F161: C | G161: C | H161: O | I161: O | J161: O | K161: O | L161: S | M161: S | N161: S | O161: R | P161: N | S161: C | T161: Closed | U161: N/A | V161: N/A
A162: 02 | B162: Other Principal Arterial | E162: 2 | F162: C | G162: C | H162: F | I162: O | J162: O | K162: O | L162: S | M162: S | N162: S | O162: R | P162: N | S162: N | T162: None | U162: 0 | V162: Never
A163: 03 | E163: 3 | S163: R | T163: Remote | U163: 0.01 | V163: gt100
A164: 04 | E164: 4 | S164: S | T164: Slight | U164: 0.02 | V164: 11to100
A165: 05 | E165: 5 | S165: O | T165: Occasional | U165: 0.2 | V165: 3to10
A166: 06 | B166: Minor Arterial | E166: 6 | F166: C | G166: C | H166: F | I166: O | J166: O | K166: O | L166: S | M166: S | N166: S | O166: R | P166: N | S166: F | T166: Frequent | U166: 0.3 | V166: lt3
A167: 07 | B167: Major Collector | E167: 7 | F167: C | G167: C | H167: F | I167: O | J167: O | K167: O | L167: S | M167: S | N167: S | O167: R | P167: N
A168: 08 | B168: Minor Collector | E168: 8 | F168: C | G168: C | H168: F | I168: O | J168: O | K168: O | L168: O | M168: S | N168: S | O168: R | P168: N
A169: 09 | B169: Local | E169: 9 | F169: C | G169: C | H169: F | I169: F | J169: O | K169: O | L169: O | M169: S | N169: S | O169: R | P169: N
A170: 10 | E170: 10
A171: 11 | B171: Interstate | E171: 11 | F171: C | G171: C | H171: O | I171: O | J171: O | K171: O | L171: S | M171: S | N171: S | O171: R | P171: N
A172: 12 | B172: Freeway | E172: 12 | F172: C | G172: C | H172: F | I172: O | J172: O | K172: O | L172: S | M172: S | N172: S | O172: R | P172: N
A173: 13 | E173: 13
A174: 14 | B174: Other Principal Arterial | E174: 14 | F174: C | G174: C | H174: F | I174: O | J174: O | K174: O | L174: S | M174: S | N174: S | O174: R | P174: N
A175: 15 | E175: 15
A176: 16 | B176: Minor Arterial | E176: 16 | F176: C | G176: C | H176: F | I176: O | J176: O | K176: O | L176: S | M176: S | N176: S | O176: R | P176: N
A177: 17 | B177: Major Collector | E177: 17 | F177: C | G177: C | H177: F | I177: O | J177: O | K177: O | L177: S | M177: S | N177: S | O177: R | P177: N
A178: 18 | E178: 18
A179: 19 | B179: Local | E179: 19 | F179: C | G179: C | H179: F | I179: F | J179: O | K179: O | L179: O | M179: S | N179: S | O179: R | P179: N
B181: 4.2.6.13
C182: Substructure Condition | N182: Channel
B183: Value | C183: 0 | D183: 1 | E183: 2 | F183: 3 | G183: 4 | H183: 5 | I183: 6 | J183: 7 | K183: 8 | L183: 9 | M183: N | N183: Protection
B184: 0 | C184: 0 | D184: 0 | E184: 0 | F184: 0 | G184: 0 | H184: 0 | I184: 0 | J184: 0 | K184: 0 | L184: 0 | M184: 0 | N184: Failure
B185: 1 | C185: 0 | D185: 1 | E185: 1 | F185: 1 | G185: 1 | H185: 1 | I185: 1 | J185: 1 | K185: 1 | L185: 1 | M185: N | N185: Failure
B186: 2 | C186: 0 | D186: 1 | E186: 2 | F186: 2 | G186: 2 | H186: 2 | I186: 2 | J186: 2 | K186: 2 | L186: 2 | M186: N | N186: Near Collapse
B187: 3 | C187: 0 | D187: 1 | E187: 2 | F187: 2 | G187: 3 | H187: 4 | I187: 4 | J187: 4 | K187: 4 | L187: 4 | M187: N | N187: Channel Mitigation
B188: 4 | C188: 0 | D188: 1 | E188: 2 | F188: 3 | G188: 4 | H188: 4 | I188: 5 | J188: 5 | K188: 6 | L188: 6 | M188: N | N188: Undetermined Bank
B189: 5 | C189: 0 | D189: 1 | E189: 2 | F189: 3 | G189: 4 | H189: 5 | I189: 5 | J189: 6 | K189: 7 | L189: 7 | M189: N | N189: Eroded Bank
B190: 6 | C190: 0 | D190: 1 | E190: 2 | F190: 3 | G190: 4 | H190: 5 | I190: 6 | J190: 6 | K190: 7 | L190: 7 | M190: N | N190: Bed Movement
B191: 7 | C191: 0 | D191: 1 | E191: 2 | F191: 3 | G191: 4 | H191: 6 | I191: 6 | J191: 7 | K191: 7 | L191: 8 | M191: N | N191: Minor Drift
B192: 8 | C192: 0 | D192: 1 | E192: 2 | F192: 3 | G192: 4 | H192: 6 | I192: 7 | J192: 7 | K192: 8 | L192: 8 | M192: N | N192: Stable Condition
B193: 9 | C193: 0 | D193: 1 | E193: 2 | F193: 3 | G193: 4 | H193: 7 | I193: 7 | J193: 8 | K193: 8 | L193: 9 | M193: N | N193: No Deficiencies
B194: N | C194: 0 | D194: 1 | E194: N | F194: N | G194: N | H194: N | I194: N | J194: N | K194: N | L194: N | M194: N | N194: Not Over Water
B196: 4.2.6.14
B197: Scour | C197: Overtopping Frequency
B198: Vulnerable | C198: R | D198: S | E198: O | F198: F
B199: 0 | C199: 1 | D199: 1 | E199: 1 | F199: 1
B200: 1 | C200: 0.01 | D200: 0.01 | E200: 0.01 | F200: 0.01
B201: 2 | C201: 0.005 | D201: 0.006 | E201: 0.008 | F201: 0.009
B202: 3 | C202: 0.0011 | D202: 0.0013 | E202: 0.0016 | F202: 0.002
B203: 4 | C203: 0.0004 | D203: 0.0005 | E203: 0.0006 | F203: 0.0007
B204: 5 | C204: 0.0003 | D204: 0.0004 | E204: 0.0005 | F204: 0.0007
B205: 6 | C205: 0.00018 | D205: 0.00025 | E205: 0.0004 | F205: 0.0005
B206: 7 | C206: 0.00018 | D206: 0.00025 | E206: 0.0004 | F206: 0.0005
B207: 8 | C207: 4e-06 | D207: 5e-06 | E207: 2e-05 | F207: 4e-05
B208: 9 | C208: 2.5e-06 | D208: 3e-06 | E208: 4e-06 | F208: 7e-06

Sheet Benefit Cost Ratio
B1: Annual Risk | F1: Average Mitigation Benefit | J1: Mitigation Cost Analysis | M1: B/C
B2: Owner Risk | C2: User Risk | D2: Total Risk | F2: Owner | G2: User | H2: Total | J2: Cost of asset replacement: | K2: 250000 | M2: Owner | N2: User | O2: Total
A3: No Action | B3: 3246 | C3: ='Flood-Minor Culvert'!$J$70 -> 50185.0891 | D3: =B3+C3 -> 53431.0891 | F3: =B3-B4 -> -8575.65 | G3: =C3-C4 -> 39134.59005 | H3: =D3-D4 -> 30558.94005 | J3: Cost of new mitigation: | K3: 375000 | M3: =F3/J7 -> -1.998071079 | N3: =G3/J7 -> 9.118106797 | O3: =H3/J7 -> 7.120035718
A4: Mitigation | B4: ='Flood-Major Culvert'!E72 -> 11821.65 | C4: ='Flood-Major Culvert'!J72 -> 11050.49905 | D4: =B4+C4 -> 22872.14905 | J4: Cost delta: | K4: =K3-K2 -> 125000
J5: Life span of mitigation: | K5: 100
J6: Mitigation Annual Cost
J7: =IF(K4<0,"$1",K4*(((0.033*(1+0.033)^K5))/(((1+0.033)^K5)-1))) -> 4291.964431
